Cogmind - Beta 16 @@@ ROGUE MODE // 2025.12.21 @ 19:32:16 // Winter2019/RPGLIKE Player: Gallgagger Result: Self-destructed Performance ------------- Evolutions (8) 4000 Regions Visited (27) 5400 Robots Destroyed (1359) 6795 Value Destroyed (70651) 70651 Prototype IDs (82) 1640 Alien Tech Used (0) 0 Bonus (58111) 58111 TOTAL SCORE: 146597 Bonus ------- Triggered High Security 3000 Triggered Max Security 1000 High Alert Combat Kills 48036 Follower Combat Kills 276 Destroyed Unchained 2000 Aligned with FarCom 300 Met Data Miner 300 Met Imprinter 300 Built Enhanced Grunts 300 Met R17 at Cetus 500 Met R17 at Research 2000 Scanned by Researcher 500 Friendly Fire -401 Cogmind --------- Core Integrity 690/850 Matter 500/500 Energy 284/285 System Corruption 14% Temperature Cool (0) Movement Hovering (16) Location -2/Research Parts ------- > --- POWER (2) -------- Compact Particle Reactor > --- PROPULSION (5) --- Improved Linear Gravjet Cooled Antigrav System Cooled Antigrav System Cooled Antigrav System Cooled Antigrav System > --- UTILITY (12) ----- Triangulator (fused) Advanced Signal Interpreter Zeronet Interface Experimental Targeting Computer Precision Matter Filter Experimental Weapon Cycler Graphene Brace Advanced Focal Shield Advanced Hacking Suite System Mapper > --- WEAPON (5) ------- XL Autogun Array (fused) > --- INVENTORY (4) ---- Protomatter-77 Advanced Weight Redist. System Experimental Sensor Array Containment Facilitator (1) Peak State ------------ > --- POWER ------------ Cooled Fission Core Compact Particle Reactor > --- PROPULSION ------- Cooled Antigrav System Cooled Antigrav System Cooled Antigrav System Cooled Antigrav System Cooled Antigrav System > --- UTILITY ---------- Triangulator Advanced Signal Interpreter Zeronet Interface Experimental Targeting Computer Precision Matter Filter Experimental Weapon Cycler Centrium Medium Armor Plating Advanced Focal Shield Experimental Thermal Shield Thermal Barrier Advanced Hacking Suite System Mapper > --- WEAPON ----------- XL Autogun Array Advanced Remote Datajack > --- INVENTORY -------- Advanced Weight Redist. System Experimental Sensor Array [Rating: 202] Favorites ----------- Power Cooled Fission Core Engine Light Ion Engine Power Core Cooled Fission Core Reactor Micro Antimatter Reactor Propulsion Cooled Airjet Wheel Wheel Hover Unit Cooled Airjet Flight Unit Improved Flight Unit Utility Experimental Sensor Array Device Experimental Sensor Array Processor Improved Signal Interpreter Hackware Advanced Hacking Suite Protection Hardened Light Armor Plating Weapon XL Autogun Array Energy Gun Salvaging Laser Ballistic Gun XL Autogun Array Launcher Containment Facilitator Special Weapon Improved Remote Datajack Build | -11 -10 -10 -9 -9 -9 -8 -8 -8 -7 -7 -7 -7 -6 -6 -6 -6 -6 -5 -5 -5 -5 -4 -4 -4 -3 -3 -2 ------- Run | Yrd Mat Min Mat Min Exi Min Mat Sto Fac Low Low Dat Pro Fac Low Low Zio Pro Fac Ext Cet Fac Arm Lab Res Tes Res Slots Evolved 20 | 3 1 2 2 2 . 1 1 1 2 . . . . 1 . . . . 1 . . 2 . . . . 1 Power 1 | . . . 1 . . . . . . . . . . . . . . . . . . . . . . . . Propulsion 4 | 1 . 1 . . . . 1 1 . . . . . . . . . . . . . . . . . . . Utility 11 | 1 . 1 1 2 . . . . 2 . . . . 1 . . . . . . . 2 . . . . 1 Weapon 4 | 1 1 . . . . 1 . . . . . . . . . . . . 1 . . . . . . . . Parts Attached 106 | 9 4 4 6 2 . . 10 1 10 1 . . . 9 . . 2 . 5 . . 7 6 . 16 5 9 Power 10 | 1 . . 2 . . . 2 . 2 . . . . . . . . . 2 . . . . . . . 1 Engine 3 | 1 . . 2 . . . . . . . . . . . . . . . . . . . . . . . . Core 4 | . . . . . . . 2 . 1 . . . . . . . . . 1 . . . . . . . . Reactor 3 | . . . . . . . . . 1 . . . . . . . . . 1 . . . . . . . 1 Propulsion 31 | 3 1 3 2 . . . 4 1 1 . . . . 4 . . . . 1 . . . 1 . 8 . 2 Treads . | . . . . . . . . . . . . . . . . . . . . . . . . . . . . Leg . | . . . . . . . . . . . . . . . . . . . . . . . . . . . . Wheel 3 | 3 . . . . . . . . . . . . . . . . . . . . . . . . . . . Hover 23 | . 1 . . . . . 4 1 1 . . . . 4 . . . . 1 . . . 1 . 8 . 2 Flight 5 | . . 3 2 . . . . . . . . . . . . . . . . . . . . . . . . Utility 51 | 2 . 1 2 2 . . 3 . 7 1 . . . 5 . . 1 . 1 . . 7 3 . 7 3 6 Device 36 | 2 . 1 . 1 . . 3 . 7 . . . . 3 . . . . . . . 7 1 . 4 2 5 Storage . | . . . . . . . . . . . . . . . . . . . . . . . . . . . . Processor 6 | . . . . . . . . . . . . . . 2 . . . . 1 . . . . . 2 1 . Hackware 3 | . . . . . . . . . . . . . . . . . . . . . . . 2 . . . 1 Protection 6 | . . . 2 1 . . . . . 1 . . . . . . 1 . . . . . . . 1 . . Artifact . | . . . . . . . . . . . . . . . . . . . . . . . . . . . . Weapon 14 | 3 3 . . . . . 1 . . . . . . . . . 1 . 1 . . . 2 . 1 2 . Energy Gun 7 | 1 3 . . . . . . . . . . . . . . . 1 . . . . . 1 . . 1 . Energy Cannon . | . . . . . . . . . . . . . . . . . . . . . . . . . . . . Ballistic Gun 4 | 2 . . . . . . 1 . . . . . . . . . . . . . . . 1 . . . . Ballistic Cannon . | . . . . . . . . . . . . . . . . . . . . . . . . . . . . Launcher 1 | . . . . . . . . . . . . . . . . . . . . . . . . . . 1 . Special Weapon 2 | . . . . . . . . . . . . . . . . . . . 1 . . . . . 1 . . Impact Weapon . | . . . . . . . . . . . . . . . . . . . . . . . . . . . . Slashing Weapon . | . . . . . . . . . . . . . . . . . . . . . . . . . . . . Piercing Weapon . | . . . . . . . . . . . . . . . . . . . . . . . . . . . . Special Melee Weapon . | . . . . . . . . . . . . . . . . . . . . . . . . . . . . Unidentified Prototypes 32 | . . 1 1 . . . 1 . 5 . . . . 3 . . 1 . 1 . . 2 2 . 6 4 5 Parts Lost . | . . . . . . . . . . . . . . . . . . . . . . . . . . . . Power . | . . . . . . . . . . . . . . . . . . . . . . . . . . . . Propulsion . | . . . . . . . . . . . . . . . . . . . . . . . . . . . . Utility . | . . . . . . . . . . . . . . . . . . . . . . . . . . . . Weapon . | . . . . . . . . . . . . . . . . . . . . . . . . . . . . Highest Loss Streak . | . . . . . . . . . . . . . . . . . . . . . . . . . . . . To Critical Strikes . | . . . . . . . . . . . . . . . . . . . . . . . . . . . . Average Backups 1 | . . . 1 3 1 1 . . . . 1 1 1 1 1 1 1 1 1 1 1 1 1 2 3 4 1 Power . | . . . . . . . . . . . . . . . . . . . . . . . . . . . . Propulsion . | . . . . . . . . . . . . . . . . . . . . . . . . . . . . Utility . | . . . . . . . . . . . 1 1 1 1 1 1 1 1 1 1 1 1 1 2 2 2 1 Weapon . | . . . 1 3 1 1 . . . . . . . . . . . . . . . . . . . . . Tool/Special . | . . . . . . . . . . . . . . . . . . . . . . . . . . . . Unused Backups 6 | . . . . . 3 . . . . . . . . . . . . . . . . . 1 . . 1 1 Power . | . . . . . . . . . . . . . . . . . . . . . . . . . . . . Propulsion . | . . . . . . . . . . . . . . . . . . . . . . . . . . . . Utility 2 | . . . . . . . . . . . . . . . . . . . . . . . 1 . . 1 . Weapon 3 | . . . . . 3 . . . . . . . . . . . . . . . . . . . . . . Tool/Special 1 | . . . . . . . . . . . . . . . . . . . . . . . . . . . 1 Average Slot Usage (%) 86 | . 100 95 98 98 100 93 81 81 82 84 84 84 84 84 85 85 85 85 85 85 85 85 85 86 85 85 85 Engine 2 | . 13 10 13 15 14 13 5 . . . . . . . . . . . . . . . . . . . . Core 6 | . . . . . . . 6 11 10 10 10 10 10 10 10 10 10 10 8 4 4 4 4 4 4 4 3 Reactor 1 | . . . . . . . . . . . . . . . . . . . . 4 4 4 4 4 4 4 4 Wheel 1 | . 14 4 . . . . . . . . . . . . . . . . . . . . . . . . . Hover 20 | . 12 4 . . . . 23 28 27 26 26 26 26 25 25 25 25 25 24 23 23 21 21 21 21 21 18 Flight 2 | . . 18 25 24 21 20 1 . . . . . . . . . . . . . . . . . . . . Device 31 | . 26 23 25 25 28 26 24 23 26 36 36 36 36 38 35 35 35 35 34 33 33 37 34 30 30 29 28 Processor 3 | . . . . . . . . . . . . . . . 5 5 5 5 5 9 9 8 8 8 8 8 8 Protection 5 | . . . 7 8 14 13 12 11 9 5 5 5 5 5 5 5 5 5 4 . . . . . 2 4 3 Energy Gun 5 | . 31 32 25 24 21 20 1 . . . . . . . . . . . . . . . . . . . . Ballistic Gun 3 | . . . . . . . 5 5 5 5 5 5 5 5 5 5 4 5 4 4 4 4 4 4 4 4 4 Special Weapon 1 | . . . . . . . . . . . . . . . . . . . . 4 4 4 4 4 4 3 3 Peak Build Rating 202 | 9 10 20 27 30 33 33 84 87 110 112 112 112 112 136 124 124 126 125 138 138 138 156 163 158 182 186 202 Average Rating 108 | 6 9 11 25 27 32 33 76 86 95 111 112 112 112 129 124 124 124 125 127 138 138 151 158 158 170 180 193 On Entrance 98 | . 9 10 20 27 30 33 33 84 87 110 112 112 112 112 124 124 124 125 125 138 138 138 156 158 158 180 184 Avg Prop Armor Cover (%) 5 | . 5 5 . . . . . . . . . . . . . . . . . . . . . . . . . Naked Turns . | . . . . . . . . . . . . . . . . . . . . . . . . . . . . Heaviest Build 67 | 8 8 9 19 24 24 24 39 39 52 51 50 50 50 50 49 49 54 54 60 51 51 58 58 52 62 62 67 Greatest Support 119 | 31 25 17 24 24 24 24 47 55 56 56 56 56 56 65 65 65 65 65 68 68 68 68 74 74 90 119 101 Greatest Overweight (x) 1 | . . . . . . . 1 . . . . . . . . . . . . . . . . . . . . Average Overweight (x) . | . . . . . . . . . . . . . . . . . . . . . . . . . . . . Largest Inventory Capacity 4 | 2 2 2 4 4 4 4 4 4 4 4 4 4 4 4 4 4 4 4 4 4 4 4 4 4 4 4 4 Average Capacity 3 | 2 2 2 3 4 4 4 4 4 4 4 4 4 4 4 4 4 4 4 4 4 4 4 4 4 4 4 4 Most Carried 4 | 1 2 2 4 4 4 4 4 4 4 2 2 2 2 4 2 3 4 4 4 4 4 4 4 2 4 4 4 Average Carried 2 | . 1 1 2 4 3 4 1 3 3 1 2 2 2 1 2 2 3 3 4 4 4 4 3 2 3 3 2 Final Capacity 4 | 2 2 2 4 4 4 4 4 4 4 4 4 4 4 4 4 4 4 4 4 4 4 4 4 4 4 4 4 Final Carried 4 | 1 1 1 4 4 4 4 4 4 . 2 2 2 2 2 2 3 3 4 4 4 4 4 2 2 4 4 4 Class Distribution -------------------- 33% | Commander-Scout 16% | Scavenger-Scout 14% | Scout 13% | Hacker-Scout 7% | Scavenger-Skirmisher 5% | Commander-Gunner 3% | Scavenger-Gunner 3% | Scavenger-Mutant Dominant Class ---------------- Scavenger-Mutant | -10/Materials Scavenger-Gunner | -10/Mines Scavenger-Skirmisher | -9/Materials Scavenger-Skirmisher | -9/Mines Scavenger-Tank | -9/Exiles Scavenger-Scout | -8/Mines Scout | -8/Materials Scout | -8/Storage Commander-Scout | -7/Factory Commander-Gunner | -7/Lower Caves Commander-Gunner | -7/Lower Caves Commander-Gunner | -7/Data Miner Commander-Gunner | -6/Proximity Caves Commander-Scout | -6/Factory Commander-Scout | -6/Lower Caves Commander-Scout | -6/Lower Caves Commander-Scout | -6/Zion Commander-Scout | -5/Proximity Caves Commander-Scout | -5/Factory Commander-Scout | -5/Extension Commander-Scout | -5/Cetus Scavenger-Scout | -4/Factory Hacker-Scout | -4/Armory Hacker-Scout | -4/Lab Hacker-Scout | -3/Research Hacker-Scout | -3/Testing Hacker-Scout | -2/Research Resources | -11 -10 -10 -9 -9 -9 -8 -8 -8 -7 -7 -7 -7 -6 -6 -6 -6 -6 -5 -5 -5 -5 -4 -4 -4 -3 -3 -2 ----------- Run | Yrd Mat Min Mat Min Exi Min Mat Sto Fac Low Low Dat Pro Fac Low Low Zio Pro Fac Ext Cet Fac Arm Lab Res Tes Res Matter Collected 24033 | 314 65 60 70 20 . . 1675 1992 2681 237 56 . 294 2918 399 147 . 373 829 679 217 2778 2989 . 1359 1753 2128 Remotely . | . . . . . . . . . . . . . . . . . . . . . . . . . . . . Salvage Created 68975 | 96 996 255 2459 266 . 287 2097 3669 7061 932 377 . 1027 8871 1563 329 . 1070 1712 2774 255 9217 9947 . 3772 4790 5153 Parts 3491 | 10 64 10 141 16 . 28 135 201 429 44 20 . 52 464 64 27 . 65 122 126 29 442 381 . 189 190 242 Haulers Intercepted 23 | . 1 . 2 . . . 1 4 3 . . . . 3 . . . . 1 . . 3 . . 4 . 1 Recyclers Shooed 7 | . . . . 1 . . . 1 . . . . . 3 . . . . 1 1 . . . . . . . Parts Field Recycled . | . . . . . . . . . . . . . . . . . . . . . . . . . . . . Retrieved Matter . | . . . . . . . . . . . . . . . . . . . . . . . . . . . . Parts Self-Destructed 263 | . . . . . . . . . . 48 20 . 52 . 64 11 . 68 . . . . . . . . . Prevented . | . . . . . . . . . . . . . . . . . . . . . . . . . . . . Parts Restored . | . . . . . . . . . . . . . . . . . . . . . . . . . . . . Kills | -11 -10 -10 -9 -9 -9 -8 -8 -8 -7 -7 -7 -7 -6 -6 -6 -6 -6 -5 -5 -5 -5 -4 -4 -4 -3 -3 -2 ------- Run | Yrd Mat Min Mat Min Exi Min Mat Sto Fac Low Low Dat Pro Fac Low Low Zio Pro Fac Ext Cet Fac Arm Lab Res Tes Res Combat Hostiles Destroyed 1182 | . 20 8 51 5 . 15 51 83 133 16 7 . 20 148 30 10 . 23 21 44 8 132 159 . 46 78 74 Guns 1172 | . 20 8 48 5 . 14 50 83 133 16 7 . 20 147 30 10 . 23 20 44 8 129 159 . 46 78 74 AOE 5 | . . . . . . . . . . . . . . 1 . . . . 1 . . 3 . . . . . Classes Destroyed 31 | 1 7 1 5 . . 1 1 1 2 1 . . 1 1 . 1 . . 1 1 . 1 . . . 4 1 Worker 29 | . . . 1 . . . . 1 4 . . . . 9 . . . . 6 . . 2 . . 5 . 1 Builder 11 | . 1 . . . . . . . . . . . . 3 . . . . 4 1 . 2 . . . . . Tunneler 8 | 4 3 . . . . . . . . . . . . . . . . . . . . . . . 1 . . Hauler 23 | . 1 . 2 . . . 1 4 3 . . . . 3 . . . . 1 . . 3 . . 4 . 1 Recycler 17 | . 1 1 1 . . . . . 2 . . . . 5 . . . . 1 3 . 1 . . 2 . . Mechanic 21 | . . . . . . . . 3 6 . . . . 5 . . . . . . . 3 2 . . 2 . Operator 18 | . 1 . 2 . . . . 1 1 . . . . 3 . . . . 3 2 . 4 . . 1 . . Drone 2 | . . . . . . . . . . . . . 2 . . . . . . . . . . . . . . Turret 1 | . . . . . . . . . . . . . . . . . . . 1 . . . . . . . . Watcher 52 | . 1 . 4 . . . 5 2 6 . . . . 4 . . . . 7 3 2 5 4 . 3 1 5 Swarmer 92 | . . 6 3 . . 11 7 4 3 1 1 . 6 4 8 3 . 6 . 5 . 3 9 . 7 5 . Cutter 4 | . . . . . . . . . . . . . . . . . . . . . . . . . . . 4 Saboteur 30 | . . . . . . . . . . . . . . 6 . . . . . . . 3 10 . . 8 3 Grunt 501 | . 18 2 33 4 . 3 19 50 48 10 4 . 9 68 17 . . 9 9 17 . 52 42 . 16 29 42 Brawler 40 | . . . 2 1 . . . 3 4 2 . . . 10 . . . . . 6 . 3 6 . . 3 . Duelist 54 | . . . 3 . . . 1 4 5 . . . 1 8 1 . . 1 1 . . 9 15 . . 3 2 Protector 40 | . . . 1 . . . . 3 6 . . . . 7 . . . . . . . 4 12 . . 5 2 Researcher 3 | . . . . . . . . . . . . . . . . . . . . . . . . . . 3 . Sentry 120 | . . . 9 . . . 20 19 11 1 1 . 1 7 3 . . 2 3 9 . 6 11 . 8 4 5 Demolisher 7 | . . . . . . . . . . . . . . . . . . . . 1 . 3 3 . . . . Specialist 17 | . . . . . . . . . 1 . . . . 5 . . . . . . . 2 6 . . 3 . Hunter 112 | . . . . . . 1 3 . 29 1 . . . 20 . 1 . 2 5 2 . 17 16 . 6 5 4 Programmer 111 | . . . . . . . . . 23 . 1 . . 8 . . . 2 1 1 . 27 25 . 7 8 8 Heavy 10 | . . . . . . . 1 . 3 . . . . 3 . . . . 1 . . . 2 . . . . Behemoth 15 | . . . . . . . . . . 1 . . 1 1 1 1 . 1 1 2 . 1 . . 2 . 3 Armor Guard 2 | . . . . . . . . . . . . . . . . . . . . . . . 2 . . . . Cetus Guard 8 | . . . . . . . . . . . . . . . . . . . . . 8 . . . . . . Investigator 3 | . . . . . . . . . . . . . . . . . . . . . . . . . . 2 1 Striker 3 | . . . . . . . . . . . . . . . . . . . . . . . . . . 3 . Executioner 1 | . . . . . . . . . . . . . . . . . . . . . . . . . . 1 . Alpha 7 1 | . . . . . . . . . . . . . . . . . . . . . . . . . . 1 . Federalist 3 | . 3 . . . . . . . . . . . . . . . . . . . . . . . . . . Thief 1 | . . . . . . . . . . . . . . . . 1 . . . . . . . . . . . Assembled 2 | . . . . . . . . . . . . . . . . . . . . . . 2 . . . . . Thug 5 | . . . . . . . . . . . . . . . . 4 . . . 1 . . . . . . . Best Kill Streak 44 | 2 2 4 7 5 . 4 9 23 16 7 3 . 9 16 15 4 . 10 12 15 5 44 38 . 11 28 20 Combat Bots Only 43 | . 2 3 7 5 . 4 7 20 15 7 3 . 9 16 15 4 . 10 6 14 4 43 36 . 10 28 19 Max Kills in Single Turn 4 | 1 2 2 2 1 . 2 3 3 3 3 2 . 2 3 2 2 . 3 2 3 1 2 4 . 4 2 2 Gunslinging 2 | . . 1 1 . . 1 2 . . . . . . . . . . . . . . . . . . . . Exploded 2 | . . . . . . . . . . . . . . 1 . . . . 1 . . 2 . . . . . Melee . | . . . . . . . . . . . . . . . . . . . . . . . . . . . . Uniques/NPCs Destroyed 2 | . . . . . . . . . . . . . . 1 . . . . . . . . . . . . 1 DW-4LL (-6/Factory) 6S-H0T (-2/Research) Combat | -11 -10 -10 -9 -9 -9 -8 -8 -8 -7 -7 -7 -7 -6 -6 -6 -6 -6 -5 -5 -5 -5 -4 -4 -4 -3 -3 -2 -------- Run | Yrd Mat Min Mat Min Exi Min Mat Sto Fac Low Low Dat Pro Fac Low Low Zio Pro Fac Ext Cet Fac Arm Lab Res Tes Res Hostile Shots Fired 2020 | . 63 16 120 7 . 33 61 40 254 16 12 . 25 203 46 11 . 21 51 50 10 189 349 . 69 170 204 Missed 767 | . 25 6 45 1 . 14 19 15 108 6 5 . 9 63 19 3 . 8 23 23 2 72 132 . 26 64 79 Hits 1253 | . 38 10 75 6 . 19 42 25 146 10 7 . 16 140 27 8 . 13 28 27 8 117 217 . 43 106 125 Melee 11 | . . . 3 1 . . . . . . . . . . . . . . . 1 . . . . . . 6 Projectile 1242 | . 38 10 72 5 . 19 42 25 146 10 7 . 16 140 27 8 . 13 28 26 8 117 217 . 43 106 119 AOE 14 | . . . . . . . . . 1 . . . . . . . . . . 1 . 6 2 . . 2 2 Critical Strikes 65 | . . . . . . . 1 1 7 3 . . . 4 2 . . 2 3 . 2 7 12 . . 10 11 Actively Blocked 61 | . . . . . . . . . 5 3 . . . 4 2 . . 2 3 . 2 7 12 . . 10 11 Part Disruptions 5 | . . . . . . . . . . . . . . 1 . . . . . . . . 2 . 1 1 . Damage Taken 20547 | . 450 109 1008 87 . 165 549 436 2566 221 77 . 214 2450 505 163 . 273 677 586 119 2135 3588 . 672 1608 1889 Core 15657 | . 393 85 717 64 . 116 386 274 1958 171 57 . 149 1822 402 131 . 213 478 465 93 1704 2913 . 515 1129 1422 Absorbed by Shields 636 | . . . . . . 65 114 . . . . . . . . . . . . 18 92 . . . . 130 217 Redirected to Core 13351 | . 196 75 626 40 . 97 336 223 1575 150 57 . 149 1679 280 112 . 213 458 445 93 1461 2357 . 484 1034 1211 Ignored by Resistances 2598 | . . . . . . . . . . . . . . . . . . . . . . 304 642 . 187 618 847 Core Remaining (%) 89 | 100 . 100 . . . 100 . 100 . . . . 88 . . . . 100 . . 100 . . 88 . 29 . Volleys Fired 3167 | 8 94 18 161 8 . 26 117 131 320 31 8 . 42 374 58 20 4 49 109 97 31 385 423 . 143 240 270 Largest 3 | 2 3 3 3 3 . 3 3 1 1 1 1 . 1 1 1 1 1 1 1 1 1 1 1 . 1 1 1 Hottest 250 | 60 90 90 90 90 . 90 90 60 60 60 60 . 60 60 60 60 250 60 60 60 60 60 60 . 60 60 60 Shots Fired 3735 | 16 212 54 483 24 . 78 141 131 320 31 8 . 42 374 58 20 4 49 109 97 31 386 424 . 143 236 264 Gun 3725 | 16 212 54 483 24 . 78 141 131 320 31 8 . 42 374 58 20 4 49 103 97 31 385 423 . 143 234 264 Cannon . | . . . . . . . . . . . . . . . . . . . . . . . . . . . . Launcher 1 | . . . . . . . . . . . . . . . . . . . . . . . . . . 1 . Special 9 | . . . . . . . . . . . . . . . . . . . 6 . . 1 1 . . 1 . Kinetic 2829 | 8 3 . . . . . 105 131 320 31 8 . 42 374 58 20 . 49 103 97 31 385 423 . 143 234 264 Thermal 896 | 8 209 54 483 24 . 78 36 . . . . . . . . . 4 . . . . . . . . . . Explosive . | . . . . . . . . . . . . . . . . . . . . . . . . . . . . Electromagnetic . | . . . . . . . . . . . . . . . . . . . . . . . . . . . . Robot Hit Streak 131 | 5 16 16 40 10 . 17 43 18 40 18 9 . 32 45 18 25 . 39 29 131 61 60 53 . 43 46 57 Robot Miss Streak 8 | 3 4 2 4 3 . 3 3 6 8 2 1 . 4 5 3 2 . 5 4 2 2 3 3 . 2 5 4 Penetration Max . | . . . . . . . . . . . . . . . . . . . . . . . . . . . . Secondary Targets 17 | . . 2 6 2 . 4 3 . . . . . . . . . . . . . . . . . . . . Max Gunslinging Chain 2 | . . 1 2 1 . 2 2 . . . . . . . . . . . . . . . . . . . . Shots Hit Robots 3291 | 9 133 39 362 17 . 60 115 122 297 31 8 . 41 344 55 20 . 48 88 96 31 373 398 . 136 222 246 Core Hits 3213 | 4 64 14 141 12 . 25 87 142 302 28 9 . 38 408 55 22 . 47 81 117 34 431 488 . 145 258 261 Critical Kills . | . . . . . . . . . . . . . . . . . . . . . . . . . . . . Critical Parts Destroyed . | . . . . . . . . . . . . . . . . . . . . . . . . . . . . Critical Strikes . | . . . . . . . . . . . . . . . . . . . . . . . . . . . . Melee Attacks . | . . . . . . . . . . . . . . . . . . . . . . . . . . . . Impact . | . . . . . . . . . . . . . . . . . . . . . . . . . . . . Slashing . | . . . . . . . . . . . . . . . . . . . . . . . . . . . . Piercing . | . . . . . . . . . . . . . . . . . . . . . . . . . . . . Sneak Attacks . | . . . . . . . . . . . . . . . . . . . . . . . . . . . . Combat Hostiles . | . . . . . . . . . . . . . . . . . . . . . . . . . . . . Follow-up Attacks . | . . . . . . . . . . . . . . . . . . . . . . . . . . . . Damage Inflicted 223468 | 102 1398 344 3310 170 . 589 5523 9521 21604 2397 549 . 2791 26897 4243 1648 . 3685 7096 8420 2832 32149 35416 . 11653 19496 21635 Guns 221427 | 102 1398 344 3310 170 . 589 5523 9521 21351 2397 549 . 2791 26392 4243 1648 . 3685 6453 8420 2832 31509 35416 . 11653 19496 21635 Cannons . | . . . . . . . . . . . . . . . . . . . . . . . . . . . . Explosions 2033 | . . . . . . . . . 245 . . . . 505 . . . . 643 . . 640 . . . . . Melee . | . . . . . . . . . . . . . . . . . . . . . . . . . . . . Ramming 8 | . . . . . . . . . 8 . . . . . . . . . . . . . . . . . . Kinetic 215285 | 47 37 . . . . . 5210 9521 21351 2397 549 . 2791 26392 4243 1648 . 3685 6453 8420 2832 31509 35416 . 11653 19496 21635 Thermal 7425 | 55 1361 344 3310 170 . 589 313 . 138 . . . . 505 . . . . . . . 640 . . . . . Explosive 750 | . . . . . . . . . 107 . . . . . . . . . 643 . . . . . . . . Electromagnetic . | . . . . . . . . . . . . . . . . . . . . . . . . . . . . Impact . | . . . . . . . . . . . . . . . . . . . . . . . . . . . . Slashing . | . . . . . . . . . . . . . . . . . . . . . . . . . . . . Piercing . | . . . . . . . . . . . . . . . . . . . . . . . . . . . . Highest Corruption 14 | . 1 1 . . . . . 1 3 . . . . 1 . . . . . 1 . 1 5 1 8 11 14 Average Corruption 3 | . 1 1 . . . . . 1 2 . . . . 1 . . . . . 1 . 1 2 1 4 9 8 Corruption Purged 15 | . . . . . . . . . 3 . . . . 1 . . . . . 1 . 4 6 . . . . Corruption Blocked . | . . . . . . . . . . . . . . . . . . . . . . . . . . . . Effects 132 | . 3 1 . . . . . 10 18 . . . . . . . . . . . . 2 3 . 37 21 37 Message Errors 34 | . 1 1 . . . . . 2 8 . . . . . . . . . . . . . . . 8 4 10 Matter Fused 29 | . 1 . . . . . . 3 1 . . . . . . . . . . . . . 1 . 11 6 6 Heat Flow Errors 16 | . . . . . . . . 1 3 . . . . . . . . . . . . . 1 . 5 2 4 Energy Discharges 8 | . . . . . . . . . 1 . . . . . . . . . . . . . . . 2 2 3 Parts Rejected 2 | . . . . . . . . . 1 . . . . . . . . . . . . . . . . 1 . Parts Fused 4 | . . . . . . . . 1 . . . . . . . . . . . . . . . . 2 1 . Data Loss (minor) 12 | . . . . . . . . 2 2 . . . . . . . . . . . . . . . 3 1 4 Data Loss (major) 6 | . . . . . . . . . 2 . . . . . . . . . . . . . . . 2 . 2 Misfires 6 | . 1 . . . . . . . . . . . . . . . . . . . . 1 1 . 2 . 1 Alerts 2 | . . . . . . . . 1 . . . . . . . . . . . . . 1 . . . . . Weapon Failures 13 | . . . . . . . . . . . . . . . . . . . . . . . . . 2 4 7 Overload Shots . | . . . . . . . . . . . . . . . . . . . . . . . . . . . . Overflow Damage 349 | . . . . . . . . . . . . . . 133 . . . . 84 . . 132 . . . . . Projectiles . | . . . . . . . . . . . . . . . . . . . . . . . . . . . . Explosions 349 | . . . . . . . . . . . . . . 133 . . . . 84 . . 132 . . . . . Melee . | . . . . . . . . . . . . . . . . . . . . . . . . . . . . Knockbacks . | . . . . . . . . . . . . . . . . . . . . . . . . . . . . Impact . | . . . . . . . . . . . . . . . . . . . . . . . . . . . . Kinetic . | . . . . . . . . . . . . . . . . . . . . . . . . . . . . Secondary . | . . . . . . . . . . . . . . . . . . . . . . . . . . . . Self-Inflicted Damage 170 | . . . . . . . . 24 4 . . . . . . . . . 52 . . . . . . . 90 Shots 3 | . . . . . . . . 1 . . . . . . . . . . 1 . . . . . . . 1 Rammed 1 | . . . . . . . . . 1 . . . . . . . . . . . . . . . . . . Targets Rammed 1 | . . . . . . . . . 1 . . . . . . . . . . . . . . . . . . Kicked . | . . . . . . . . . . . . . . . . . . . . . . . . . . . . Crushed . | . . . . . . . . . . . . . . . . . . . . . . . . . . . . Highest Temperature 277 | . 82 184 144 . . . 188 277 256 75 59 . 63 142 63 49 170 47 118 84 55 154 139 . 112 208 185 Average Temperature 45 | . 24 65 41 . . . 34 78 56 36 40 . 35 40 34 29 64 27 41 35 28 37 48 . 34 46 37 Received Heat Transfer 3796 | . 255 39 387 30 . 54 144 180 291 60 18 . 39 363 126 21 . 39 147 107 . 246 687 . 81 258 224 Siege Activations . | . . . . . . . . . . . . . . . . . . . . . . . . . . . . Martial Activations . | . . . . . . . . . . . . . . . . . . . . . . . . . . . . Shielding Activations . | . . . . . . . . . . . . . . . . . . . . . . . . . . . . Robots Disrupted . | . . . . . . . . . . . . . . . . . . . . . . . . . . . . Combat Hostiles . | . . . . . . . . . . . . . . . . . . . . . . . . . . . . Robots Corrupted . | . . . . . . . . . . . . . . . . . . . . . . . . . . . . Combat Hostiles . | . . . . . . . . . . . . . . . . . . . . . . . . . . . . Parts Fried . | . . . . . . . . . . . . . . . . . . . . . . . . . . . . Impact Corruptions . | . . . . . . . . . . . . . . . . . . . . . . . . . . . . Robots Melted 5 | . . . 3 . . 1 1 . . . . . . . . . . . . . . . . . . . . Combat Hostiles 5 | . . . 3 . . 1 1 . . . . . . . . . . . . . . . . . . . . Parts Melted 54 | . 9 3 27 . . 7 2 . . . . . . 2 . . . . . . . . 2 . 2 . . Heat Transferred 17581 | 125 3725 975 9004 450 . 1600 850 . 152 . . . . 350 . . . . . . . 350 . . . . . Parts Sabotaged 4 | . . . . . . . . . . . . . . . . . . . . . . . . . . . 4 Parts Stolen . | . . . . . . . . . . . . . . . . . . . . . . . . . . . . Parts Stripped . | . . . . . . . . . . . . . . . . . . . . . . . . . . . . Power Chain Reactions . | . . . . . . . . . . . . . . . . . . . . . . . . . . . . Alert | -11 -10 -10 -9 -9 -9 -8 -8 -8 -7 -7 -7 -7 -6 -6 -6 -6 -6 -5 -5 -5 -5 -4 -4 -4 -3 -3 -2 ------- Run | Yrd Mat Min Mat Min Exi Min Mat Sto Fac Low Low Dat Pro Fac Low Low Zio Pro Fac Ext Cet Fac Arm Lab Res Tes Res Maximum Alert Level 5 | . 1 1 3 2 . 1 3 5 5 . . . . 5 . . . . 3 5 4 5 5 . 4 5 5 Low Security (%) 11 | 100 77 90 5 . . 45 10 . . . . . . . . . . . . . . . . . 15 . . Level 1 7 | . 22 9 14 10 . 54 20 . . . . . . 3 . . . . 46 . . . . . 4 . . Level 2 15 | . . . 37 89 . . 44 13 18 . . . . 9 . . . . 33 13 . 3 . . 25 . . Level 3 17 | . . . 42 . . . 23 9 18 . . . . 10 . . . . 20 18 92 7 . . 53 . . Level 4 12 | . . . . . . . . 25 27 . . . . 27 . . . . . 49 7 14 . . 2 . . Level 5 8 | . . . . . . . . . 5 . . . . 14 . . . . . 18 . 9 19 . . . 59 High Security 24 | . . . . . . . . 52 29 . . . . 34 . . . . . . . 65 80 . . . 40 Max Security 2 | . . . . . . . . . . . . . . . . . . . . . . . . . . 99 . Sterilizations 7 | . . . 1 . . . 1 1 1 . . . . 1 . . . . . . . 1 1 . . . . Peak Influence 6184 | 10 240 218 1082 490 . 285 1050 2766 3939 . . . . 4179 . . . . 893 1661 1112 4655 6184 . 1107 3656 3795 Initial 2280 | . . 83 53 420 . . 72 443 1257 . . . . 323 . . . . 270 437 882 578 2280 . . 614 2056 Average 1532 | 2 93 148 630 432 . 195 523 1821 1575 . . . . 1972 . . . . 458 1256 1029 3028 4255 . 660 2588 2443 Influence Increases 35915 | 20 588 195 1555 120 . 365 1892 2577 3897 353 162 . 446 4534 633 144 . 736 1149 1522 350 4889 4054 . 1669 2056 2009 Destroy 0b10 Robot/C 22900 | . 360 160 1000 100 . 300 1020 1600 2540 320 140 . 360 2800 600 100 . 480 420 960 160 2580 2980 . 920 1560 1440 Destroy 0b10 Robot/NC 1165 | 20 40 5 55 . . . 30 70 140 . . . 20 195 . 5 . 15 110 50 10 145 90 . 80 40 45 Destroy Leader 4174 | . 114 30 292 20 . 50 342 322 518 30 20 . 60 492 30 30 . 50 146 86 . 466 428 . 244 162 242 Allied During Kill 1871 | . . . . . . . . . 4 3 2 . 6 129 3 9 . 191 55 240 170 869 177 . 13 . . Successful Hack 325 | . 14 . 3 . . . 35 8 79 . . . . 54 . . . . 38 12 . 40 . . 30 . 12 Select Force Hacks 520 | . 60 . 160 . . . 130 110 30 . . . . . . . . . . . . . . . 30 . . Disable Machine 1800 | . . . . . . . 15 75 345 . . . . 420 . . . . 180 60 . 270 165 . 45 135 90 Anti-Garrison Action 600 | . . . . . . . 200 200 . . . . . . . . . . . . . . . . 200 . . Destroy Structure 1855 | . . . . . . . 75 147 211 . . . . 249 . . . . 200 54 10 504 154 . 62 54 135 Advance Influence 150 | . . . . . . . . . . . . . . 150 . . . . . . . . . . . . . Partial Spotted 240 | . . . 15 . . 15 . 45 15 . . . . 15 . . . . . 45 . 15 15 . 30 15 15 Lose Combat Pursuer 315 | . . . 30 . . . 45 . 15 . . . . 30 . . . . . 15 . . 45 . 15 90 30 Influence Decreases 33106 | 20 374 271 615 788 410 180 1027 861 2724 1664 690 2100 170 631 1833 757 2366 306 686 838 893 1268 2525 6184 576 479 1870 Entered New Map 24559 | . . 131 85 658 410 . 113 607 1509 1458 500 2100 . 103 1547 567 2366 . 160 456 695 456 2375 6184 . 479 1600 Time Decay 6537 | 20 374 140 530 130 . 180 464 254 595 206 190 . 170 518 286 190 . 286 286 362 198 302 90 . 496 . 270 Lost Ally 810 | . . . . . . . . . 20 . . . . 10 . . . 20 240 20 . 360 60 . 80 . . Purge Threat 1200 | . . . . . . . 450 . 600 . . . . . . . . . . . . 150 . . . . . Squads Dispatched 244 | . 7 . 15 . . . 22 17 35 . . . . 29 . . . . 10 2 . 29 24 . 13 21 20 Investigation 46 | . 5 . 11 . . . 6 6 4 . . . . 2 . . . . . . . 2 . . 9 . 1 Extermination 13 | . . . . . . . . . 5 . . . . 3 . . . . 1 . . 1 1 . 1 . 1 Reinforcement 24 | . 2 . 2 . . . 1 . 2 . . . . 3 . . . . 4 . . 4 1 . 3 1 1 Assault 135 | . . . 2 . . . . 8 23 . . . . 20 . . . . 4 2 . 18 22 . . 20 16 Garrison 26 | . . . . . . . 15 3 1 . . . . 1 . . . . 1 . . 4 . . . . 1 Intercept . | . . . . . . . . . . . . . . . . . . . . . . . . . . . . Searches Triggered . | . . . . . . . . . . . . . . . . . . . . . . . . . . . . Unchained Authorized 4 | . . . . . . . . . . . . . . 1 . . . . 1 . . . 1 . . . 1 Construction Impeded 3 | . . . . . . . . . . . . . . 1 . . . . 1 . . 1 . . . . . Haulers Reinforced 3 | . . . . . . . . . . . . . . . . . . . 1 . . 2 . . . . . Active Scanning Responses . | . . . . . . . . . . . . . . . . . . . . . . . . . . . . Cargo Convoy Interrupts 2 | . . . . . . . . . 1 . . . . 1 . . . . . . . . . . . . . Stealth | -11 -10 -10 -9 -9 -9 -8 -8 -8 -7 -7 -7 -7 -6 -6 -6 -6 -6 -5 -5 -5 -5 -4 -4 -4 -3 -3 -2 --------- Run | Yrd Mat Min Mat Min Exi Min Mat Sto Fac Low Low Dat Pro Fac Low Low Zio Pro Fac Ext Cet Fac Arm Lab Res Tes Res Distress Signals 34 | . . . 2 . . . 1 1 2 . . . . 3 . . . . 10 1 1 2 1 . 2 3 5 Communications Jammed 22 | . . . . . . . . 22 . . . . . . . . . . . . . . . . . . . Distress Signals 21 | . . . . . . . . 21 . . . . . . . . . . . . . . . . . . . Times Spotted 1393 | . 26 8 72 5 . 14 48 94 158 17 3 . 19 153 29 10 . 21 36 43 9 159 179 . 52 138 100 Peak Tracking Total 28 | . 3 3 8 3 . 3 6 10 13 4 2 . 4 9 9 3 . 9 4 6 4 11 22 . 7 28 12 Tactical Retreats 16 | . . . 1 . . . 1 . 1 . . . . 2 . . . . 1 1 . . 3 . 1 3 2 Traps | -11 -10 -10 -9 -9 -9 -8 -8 -8 -7 -7 -7 -7 -6 -6 -6 -6 -6 -5 -5 -5 -5 -4 -4 -4 -3 -3 -2 ------- Run | Yrd Mat Min Mat Min Exi Min Mat Sto Fac Low Low Dat Pro Fac Low Low Zio Pro Fac Ext Cet Fac Arm Lab Res Tes Res Traps Triggered 20 | . . . 2 . . . 1 2 1 . . . . 1 . . . . . 2 . 2 3 . 2 1 3 Indirectly . | . . . . . . . . . . . . . . . . . . . . . . . . . . . . Trap Hack Attempts . | . . . . . . . . . . . . . . . . . . . . . . . . . . . . Triggered . | . . . . . . . . . . . . . . . . . . . . . . . . . . . . Disarmed . | . . . . . . . . . . . . . . . . . . . . . . . . . . . . Reprogrammed . | . . . . . . . . . . . . . . . . . . . . . . . . . . . . Reused . | . . . . . . . . . . . . . . . . . . . . . . . . . . . . Traps Extracted . | . . . . . . . . . . . . . . . . . . . . . . . . . . . . Installed . | . . . . . . . . . . . . . . . . . . . . . . . . . . . . Triggered . | . . . . . . . . . . . . . . . . . . . . . . . . . . . . Machines | -11 -10 -10 -9 -9 -9 -8 -8 -8 -7 -7 -7 -7 -6 -6 -6 -6 -6 -5 -5 -5 -5 -4 -4 -4 -3 -3 -2 ---------- Run | Yrd Mat Min Mat Min Exi Min Mat Sto Fac Low Low Dat Pro Fac Low Low Zio Pro Fac Ext Cet Fac Arm Lab Res Tes Res Machines Disabled 142 | . . . . . . . 2 5 23 1 . . . 29 4 . . 1 12 6 . 28 13 . 3 9 6 Max in Single Turn 6 | . . . . . . . 1 1 4 1 . . . 6 1 . . 1 3 1 . 6 1 . 1 2 1 Garrison Access 13 | . . . . . . . 1 1 1 . . . . 3 . . . . 3 . . 1 . . 2 . 1 Energy Cycler 1 | . . . . . . . . . . . . . . . . . . . . . . . 1 . . . . Machines Repaired . | . . . . . . . . . . . . . . . . . . . . . . . . . . . . Machines Dismantled . | . . . . . . . . . . . . . . . . . . . . . . . . . . . . Machines Sabotaged 5 | . . . 2 . . . 2 1 . . . . . . . . . . . . . . . . . . . Overloaded Fab Kills . | . . . . . . . . . . . . . . . . . . . . . . . . . . . . Hacking | -11 -10 -10 -9 -9 -9 -8 -8 -8 -7 -7 -7 -7 -6 -6 -6 -6 -6 -5 -5 -5 -5 -4 -4 -4 -3 -3 -2 --------- Run | Yrd Mat Min Mat Min Exi Min Mat Sto Fac Low Low Dat Pro Fac Low Low Zio Pro Fac Ext Cet Fac Arm Lab Res Tes Res Machines Accessed 114 | . 10 . 9 . 1 . 10 9 20 . 1 4 1 11 1 1 . . 5 3 . 7 3 . 12 . 6 Terminals 70 | . 7 . 5 . . . 7 5 16 . . . 1 6 1 . . . 2 3 . 5 3 . 4 . 5 Fabricators 7 | . . . . . . . . . 2 . . . . 1 . . . . 2 . . . . . 2 . . Repair Stations 5 | . 1 . 2 . . . 1 1 . . . . . . . . . . . . . . . . . . . Recycling Units 9 | . 2 . 1 . . . 1 2 1 . . . . . . . . . . . . . . . 2 . . Scanalyzers 3 | . . . 1 . . . . . . . . . . 1 . . . . . . . . . . 1 . . Garrison Access 13 | . . . . . . . 1 1 1 . . . . 3 . . . . 1 . . 2 . . 3 . 1 Total Hacks 302 | . 30 . 23 . 1 . 25 21 59 . 1 26 1 20 5 1 . . 10 8 . 18 9 . 32 . 12 Successful 180 | . 18 . 15 . 1 . 18 12 34 . 1 26 1 12 5 1 . . 8 4 . 8 2 . 9 . 5 Failed 121 | . 12 . 8 . . . 7 9 24 . . . . 8 . . . . 2 4 . 10 7 . 23 . 7 Catastrophic 13 | . 1 . . . . . . 1 2 . . . . 2 . . . . 1 . . 2 1 . 3 . . Database Lockouts 1 | . . . . . . . . . 1 . . . . . . . . . . . . . . . . . . Manual 198 | . 27 . 21 . 1 . 16 25 46 . . . . 11 1 . . . 6 2 1 8 9 . 15 . 9 Terminals 208 | . 25 . 17 . . . 22 17 50 . . . 1 9 5 . . . 7 8 . 16 9 . 11 . 11 Fabricators 16 | . . . . . . . . . 5 . . . . 4 . . . . 2 . . . . . 5 . . Repair Stations 7 | . 1 . 4 . . . 1 1 . . . . . . . . . . . . . . . . . . . Recycling Units 15 | . 4 . 1 . . . 1 2 1 . . . . . . . . . . . . . . . 6 . . Scanalyzers 6 | . . . 1 . . . . . . . . . . 2 . . . . . . . . . . 3 . . Garrison Access 21 | . . . . . . . 1 1 3 . . . . 5 . . . . 1 . . 2 . . 7 . 1 Terminal Hacks 77 | . 4 . 2 . 1 . 7 3 13 . 1 26 1 1 5 1 . . 3 2 . 4 . . 3 . . Record 19 | . . . 1 . . . . . . . . 11 1 . 5 . . . 1 . . . . . . . . Part Schematic 11 | . . . . . . . . . 3 . . 8 . . . . . . . . . . . . . . . Robot Schematic 4 | . . . . . . . . . . . . 4 . . . . . . . . . . . . . . . Robot Analysis 11 | . 3 . . . . . 2 3 2 . . . . . . . . . . 1 . . . . . . . Prototype ID Bank 6 | . . . . . . . 1 . . . . 3 . . . . . . . . . 1 . . 1 . . Open Door 2 | . . . . . . . . . . . 1 . . . . 1 . . . . . . . . . . . Branch Access Points 4 | . . . 1 . . . 1 . 1 . . . . . . . . . . . . . . . 1 . . Machine Index 2 | . . . . . . . . . . . . . . . . . . . 1 . . 1 . . . . . Terminal Index 4 | . 1 . . . . . . . 1 . . . . . . . . . 1 1 . . . . . . . Garrison Index 1 | . . . . . . . . . . . . . . . . . . . . . . . . . 1 . . Alert Level 1 | . . . . . . . . . 1 . . . . . . . . . . . . . . . . . . Unreport Threat 8 | . . . . . . . 3 . 4 . . . . . . . . . . . . 1 . . . . . Locate Traps 1 | . . . . . . . . . . . . . . . . . . . . . . 1 . . . . . Hauler Manifests 2 | . . . . . . . . . 1 . . . . 1 . . . . . . . . . . . . . Proto ID Catalog 1 | . . . . . 1 . . . . . . . . . . . . . . . . . . . . . . Fabricator Hacks 7 | . . . . . . . . . 2 . . . . 2 . . . . . . . . . . 3 . . Load Schematic 4 | . . . . . . . . . 1 . . . . 1 . . . . . . . . . . 2 . . Build 3 | . . . . . . . . . 1 . . . . 1 . . . . . . . . . . 1 . . Repair Station Hacks . | . . . . . . . . . . . . . . . . . . . . . . . . . . . . Recycling Unit Hacks 1 | . 1 . . . . . . . . . . . . . . . . . . . . . . . . . . Retrieve Components 1 | . 1 . . . . . . . . . . . . . . . . . . . . . . . . . . Scanalyzer 1 | . . . . . . . . . . . . . . 1 . . . . . . . . . . . . . Retrieve Study 1 | . . . . . . . . . . . . . . 1 . . . . . . . . . . . . . Garrison Access Hacks 8 | . . . . . . . . . 1 . . . . 3 . . . . 1 . . 1 . . 1 . 1 Seal Access 8 | . . . . . . . . . 1 . . . . 3 . . . . 1 . . 1 . . 1 . 1 Unauthorized Hacks 85 | . 12 . 13 . . . 11 9 18 . . . . 5 . . . . 4 2 . 3 2 . 2 . 4 Terminals 64 | . 9 . 9 . . . 8 5 16 . . . . 4 . . . . 2 2 . 3 2 . . . 4 Track 1 | . 1 . . . . . . . . . . . . . . . . . . . . . . . . . . Assimilate 13 | . 2 . . . . . 1 . 6 . . . . 4 . . . . . . . . . . . . . Botnet 35 | . 3 . 3 . . . 3 3 10 . . . . . . . . . 2 2 . 3 2 . . . 4 Disrupt 1 | . 1 . . . . . . . . . . . . . . . . . . . . . . . . . . Operators 2 | . 1 . 1 . . . . . . . . . . . . . . . . . . . . . . . . Skim 2 | . . . 2 . . . . . . . . . . . . . . . . . . . . . . . . Sabotage 10 | . 1 . 3 . . . 4 2 . . . . . . . . . . . . . . . . . . . Fabricators 4 | . . . . . . . . . 1 . . . . 1 . . . . 2 . . . . . . . . Prioritize 1 | . . . . . . . . . . . . . . 1 . . . . . . . . . . . . . Liberate 2 | . . . . . . . . . . . . . . . . . . . 2 . . . . . . . . Haulers 1 | . . . . . . . . . 1 . . . . . . . . . . . . . . . . . . Repair Stations 5 | . 1 . 2 . . . 1 1 . . . . . . . . . . . . . . . . . . . Patch 5 | . 1 . 2 . . . 1 1 . . . . . . . . . . . . . . . . . . . Recycling Units 7 | . 2 . 1 . . . 1 2 1 . . . . . . . . . . . . . . . . . . Tunnel 7 | . 2 . 1 . . . 1 2 1 . . . . . . . . . . . . . . . . . . Scanalyzers 2 | . . . 1 . . . . . . . . . . . . . . . . . . . . . 1 . . Extract 2 | . . . 1 . . . . . . . . . . . . . . . . . . . . . 1 . . Garrison Access 3 | . . . . . . . 1 1 . . . . . . . . . . . . . . . . 1 . . Jam 3 | . . . . . . . 1 1 . . . . . . . . . . . . . . . . 1 . . Data Cores Recovered 7 | . . . 1 . . . . . 1 . . . . . . . . . 1 2 . 2 . . . . . Used 3 | . . . 1 . . . . . . . . . . . . . . . . 1 . 1 . . . . . Hacking Detections 65 | . 5 . 2 . . . 3 5 15 . . . . 8 1 . . . 4 2 . 5 3 . 9 . 3 Full Trace Events 17 | . 1 . 1 . . . 1 . 3 . . . . 1 1 . . . . . . 2 . . 6 . 1 Feedback Events 2 | . 1 . . . . . . . . . . . . . . . . . . . . 1 . . . . . Corruption 2 | . 1 . . . . . . . . . . . . . . . . . . . . 1 . . . . . Feedback Blocked . | . . . . . . . . . . . . . . . . . . . . . . . . . . . . Robot Schematics Acquired 10 | . . . . . . . . . . . . 4 . . . . 3 . . . . . . . . 3 . Robots Built 1 | . . . . . . . . . . . . . . 1 . . . . . . . . . . . . . Authchips . | . . . . . . . . . . . . . . . . . . . . . . . . . . . . Time 76 | . . . . . . . . . . . . . . 76 . . . . . . . . . . . . . Total Robot Build Rating 5 | . . . . . . . . . . . . . . 5 . . . . . . . . . . . . . Part Schematics Acquired 46 | . . . 8 . . . . . 3 . . 8 . . . . 14 . . . . . . . 4 9 . Parts Built 3 | . . . . . . . . . 2 . . . . . . . . . . . . . . . 1 . . Authchips 1 | . . . . . . . . . . . . . . . . . . . . . . . . . 1 . . Time 103 | . . . . . . . . . 47 . . . . . . . . . . . . . . . 56 . . Total Part Build Rating 16 | . . . . . . . . . 10 . . . . . . . . . . . . . . . 6 . . Part Studies Acquired 1 | . . . . . . . . . . . . . . 1 . . . . . . . . . . . . . Parts Repaired . | . . . . . . . . . . . . . . . . . . . . . . . . . . . . Time . | . . . . . . . . . . . . . . . . . . . . . . . . . . . . Parts Recycled . | . . . . . . . . . . . . . . . . . . . . . . . . . . . . Recycled Matter . | . . . . . . . . . . . . . . . . . . . . . . . . . . . . Retrieved Matter . | . . . . . . . . . . . . . . . . . . . . . . . . . . . . Retrieved Components 9 | . 9 . . . . . . . . . . . . . . . . . . . . . . . . . . Parts Scanalyzed . | . . . . . . . . . . . . . . . . . . . . . . . . . . . . Part Schematics Acquired . | . . . . . . . . . . . . . . . . . . . . . . . . . . . . Parts Damaged . | . . . . . . . . . . . . . . . . . . . . . . . . . . . . Bothacking | -11 -10 -10 -9 -9 -9 -8 -8 -8 -7 -7 -7 -7 -6 -6 -6 -6 -6 -5 -5 -5 -5 -4 -4 -4 -3 -3 -2 ------------ Run | Yrd Mat Min Mat Min Exi Min Mat Sto Fac Low Low Dat Pro Fac Low Low Zio Pro Fac Ext Cet Fac Arm Lab Res Tes Res Used RIF Installer . | . . . . . . . . . . . . . . . . . . . . . . . . . . . . Robots Hacked 2 | . . . . . . . . . . . . . . . . . . . . . . 1 1 . . . . Non-combat 1 | . . . . . . . . . . . . . . . . . . . . . . 1 . . . . . Combat 1 | . . . . . . . . . . . . . . . . . . . . . . . 1 . . . . Robot Hacks Applied 2 | . . . . . . . . . . . . . . . . . . . . . . 1 1 . . . . parse_system 1 | . . . . . . . . . . . . . . . . . . . . . . . 1 . . . . find_chute 1 | . . . . . . . . . . . . . . . . . . . . . . 1 . . . . . Relay Couplers Released 3 | . . . . . . . . . . . . . . . . . . . 3 . . . . . . . . Machine Destruction 2 | . . . . . . . . . . . . . . . . . . . 2 . . . . . . . . Programmers 1 | . . . . . . . . . . . . . . . . . . . 1 . . . . . . . . Fabnet Peak Effective % . | . . . . . . . . . . . . . . . . . . . . . . . . . . . . Robots Rewired 25 | . . . . . . . . . . . . . . . . . . 2 . 15 . . 8 . . . . Allies Hacked 2 | . . . . . . . . . . . . . . . . . . . . . . . . . 2 . . Hacks Repelled . | . . . . . . . . . . . . . . . . . . . . . . . . . . . . Allies | -11 -10 -10 -9 -9 -9 -8 -8 -8 -7 -7 -7 -7 -6 -6 -6 -6 -6 -5 -5 -5 -5 -4 -4 -4 -3 -3 -2 -------- Run | Yrd Mat Min Mat Min Exi Min Mat Sto Fac Low Low Dat Pro Fac Low Low Zio Pro Fac Ext Cet Fac Arm Lab Res Tes Res Total Allies 54 | . 1 . . . . . 1 . 4 . . . . 5 . . 6 2 3 19 5 . 8 . . . . Largest Group 23 | . 1 1 1 1 1 1 2 2 4 4 4 4 4 8 8 8 14 15 18 18 23 22 4 4 4 . . Highest-Rated Group 1109 | . 10 10 10 10 10 10 20 20 72 72 72 72 72 176 177 177 327 390 477 629 1109 950 192 192 192 . . Highest-Rated Ally 159 | . 10 10 10 10 10 10 10 10 26 26 26 26 26 26 27 27 32 49 49 159 159 96 48 48 48 . . Total Orders 74 | . 2 . 6 1 . . 2 5 21 1 . . . 20 2 2 6 4 . . 2 . . . . . . STAY 42 | . 1 . 3 1 . . 1 3 14 1 . . . 12 1 1 1 1 . . 2 . . . . . . FOLLOW 27 | . 1 . 3 . . . 1 2 7 . . . . 7 1 1 3 1 . . . . . . . . . GUARD 2 | . . . . . . . . . . . . . . . . . . 2 . . . . . . . . . DROP 1 | . . . . . . . . . . . . . . . . . 1 . . . . . . . . . . PICKUP 2 | . . . . . . . . . . . . . . 1 . . 1 . . . . . . . . . . Ally Attacks 206 | . . . . . . . . . . . . . . . . . . 21 25 32 4 111 13 . . . . Total Damage 4312 | . . . . . . . . . . . . . . . . . . 207 460 567 125 2514 439 . . . . Kills 26 | . . . . . . . . . . . . . . . . . . 3 1 5 . 15 2 . . . . Allies Corrupted 5 | . . . . . . . . . . . . . . . . . . . 1 1 . 1 . . 2 . . Allies Melted . | . . . . . . . . . . . . . . . . . . . . . . . . . . . . Intel | -11 -10 -10 -9 -9 -9 -8 -8 -8 -7 -7 -7 -7 -6 -6 -6 -6 -6 -5 -5 -5 -5 -4 -4 -4 -3 -3 -2 ------- Run | Yrd Mat Min Mat Min Exi Min Mat Sto Fac Low Low Dat Pro Fac Low Low Zio Pro Fac Ext Cet Fac Arm Lab Res Tes Res Active Infowar (turns) 22688 | 81 1592 281 1482 277 154 370 1175 1165 2663 437 395 35 348 2183 626 381 737 627 633 833 419 1917 1027 10 1365 484 991 Optics 67 | . . . . . . . . . . . . . . 2 . . . . . . . . . . 65 . . Sensors 18624 | . . 39 1482 277 154 370 1175 1165 2663 437 395 35 348 2183 626 381 737 627 633 833 419 1917 1027 10 515 . 176 Zeronet 2274 | . . . . . . . . . . . . . . 1665 . . . . . . . . . . . . 609 Terrain 4603 | 81 1592 281 1482 277 154 370 366 . . . . . . . . . . . . . . . . . . . . Seismic 4623 | 21 1592 281 1482 277 154 370 446 . . . . . . . . . . . . . . . . . . . . Triangulation 14990 | . . . . . . . . . 1542 437 395 35 348 2183 626 381 737 627 633 833 419 1917 1027 10 1365 484 991 Jamming 1458 | . . . . . . . 729 667 . . . . . . . . . . . . . 62 . . . . . Robot Analysis Total 11 | . 3 . . . . . 2 3 2 . . . . . . . . . . 1 . . . . . . . Derelict Logs Recovered 16 | . . 1 . 1 . . . . . 2 2 . 2 . 3 1 2 2 . . . . . . . . . Drone Launches . | . . . . . . . . . . . . . . . . . . . . . . . . . . . . Drone Recoveries . | . . . . . . . . . . . . . . . . . . . . . . . . . . . . Exploration | -11 -10 -10 -9 -9 -9 -8 -8 -8 -7 -7 -7 -7 -6 -6 -6 -6 -6 -5 -5 -5 -5 -4 -4 -4 -3 -3 -2 ------------- Run | Yrd Mat Min Mat Min Exi Min Mat Sto Fac Low Low Dat Pro Fac Low Low Zio Pro Fac Ext Cet Fac Arm Lab Res Tes Res Turns Passed 22723 | 116 1592 281 1482 277 154 370 1175 1165 2663 437 395 35 348 2183 626 381 737 627 633 833 419 1917 1027 10 1365 484 991 Spaces Moved 33932 | 90 1484 542 1266 678 343 757 1265 1261 4873 1142 1084 78 890 3130 1071 929 996 1137 1370 1010 183 2083 1205 10 3032 613 1410 Core 4 | 4 . . . . . . . . . . . . . . . . . . . . . . . . . . . Treads . | . . . . . . . . . . . . . . . . . . . . . . . . . . . . Legs . | . . . . . . . . . . . . . . . . . . . . . . . . . . . . Wheels 186 | 86 100 . . . . . . . . . . . . . . . . . . . . . . . . . . Hover 30198 | . 1384 101 . . . . 1206 1261 4873 1142 1084 78 890 3130 1071 929 996 1137 1370 1010 183 2083 1205 10 3032 613 1410 Flight 3544 | . . 441 1266 678 343 757 59 . . . . . . . . . . . . . . . . . . . . Fastest Speed 15 | 50 65 34 34 34 34 34 34 36 34 34 34 34 34 34 34 34 34 34 34 36 36 36 36 38 34 15 16 Average Speed 36 | 84 66 39 34 34 34 34 37 36 34 34 34 34 34 34 34 34 34 34 34 36 36 36 37 38 35 32 34 Slowest Speed 110 | 100 80 65 34 34 34 34 110 38 36 34 34 34 34 34 34 34 34 34 36 36 36 36 43 38 38 34 38 Overloaded Moves 66 | . . . . . . . . . . . . . . . . . . . . . . . . . . 54 12 Propulsion Burnouts . | . . . . . . . . . . . . . . . . . . . . . . . . . . . . Robots Hopped 53 | . . 6 21 13 . 13 . . . . . . . . . . . . . . . . . . . . . Potential Cave-ins . | . . . . . . . . . . . . . . . . . . . . . . . . . . . . Cave-ins Triggered 1 | . . . . . . . . . 1 . . . . . . . . . . . . . . . . . . Exploration Rate (%) 75 | 4 96 97 69 93 83 98 79 97 78 98 98 71 96 55 98 98 86 98 42 96 58 37 64 5 78 90 38 Regions Visited 27 Branch Regions 18 Pre-discovered Areas 16 | . 2 2 1 . . . 1 2 1 . 1 1 . . 1 . 3 1 . . . . . . . . . Known Exits Taken 16 | . . . 1 . . . 1 . 1 . . . . 1 1 1 1 1 1 1 1 1 1 1 1 1 . Unknown Exits Taken 11 | 1 1 1 . 1 1 1 . 1 . 1 1 1 1 . . . . . . . . . . . . . . Scrap Searched 27 | . . 2 . 2 . 1 . . . 9 3 . 3 . 3 2 1 1 . . . . . . . . . Spaces Dug 124 | . . . . . . . 5 8 31 . . . . 24 2 . . . 15 . . 2 13 . 4 5 15 Terrain Destroyed 1488 | . . . . . . . 81 146 231 17 5 . 24 281 27 13 . 24 115 36 2 288 80 . 33 32 53 Melee . | . . . . . . . . . . . . . . . . . . . . . . . . . . . . Projectile 986 | . . . . . . . 81 126 152 17 5 . 24 135 27 13 . 24 64 36 2 101 61 . 33 32 53 AOE 502 | . . . . . . . . 20 79 . . . . 146 . . . . 51 . . 187 19 . . . . Terrain Rammed . | . . . . . . . . . . . . . . . . . . . . . . . . . . . . Walls Destroyed . | . . . . . . . . . . . . . . . . . . . . . . . . . . . . Machines Disabled . | . . . . . . . . . . . . . . . . . . . . . . . . . . . . Actions | -11 -10 -10 -9 -9 -9 -8 -8 -8 -7 -7 -7 -7 -6 -6 -6 -6 -6 -5 -5 -5 -5 -4 -4 -4 -3 -3 -2 --------- Run | Yrd Mat Min Mat Min Exi Min Mat Sto Fac Low Low Dat Pro Fac Low Low Zio Pro Fac Ext Cet Fac Arm Lab Res Tes Res Total 44653 | 109 1985 579 2126 702 381 828 1963 2003 5941 1198 1112 85 947 4360 1349 999 1386 1392 1563 1510 544 3364 1907 15 3352 965 1988 Wait 6106 | 3 365 12 650 20 32 47 532 568 585 6 17 8 7 709 194 39 381 163 45 275 325 774 73 6 80 43 147 Move 33802 | 89 1483 529 1225 651 342 731 1264 1260 4872 1141 1083 77 889 3129 1070 928 995 1136 1369 1009 182 2082 1204 9 3031 612 1410 Hop 50 | . . 6 19 13 . 12 . . . . . . . . . . . . . . . . . . . . . Pick Up 44 | . 5 . 5 1 1 . 3 3 2 1 . . . 5 . 1 . 2 1 2 . 2 2 . . 3 5 Fast Attach 35 | 7 . 2 2 2 . . 2 1 3 . . . . 2 . . 2 . 1 . . 3 1 . 1 3 3 Attach 6 | . 1 . . . . . 1 . 1 . . . . . . . . . . . . . . . . 1 2 Detach 1 | . . . . . . . . . . . . . . . . . . . . . . . . . . 1 . Swap 100 | 2 4 4 5 . . . 7 . 8 1 . . . 8 . . 1 . 8 . . 5 8 . 20 7 12 Drop 71 | . 5 1 5 1 4 . 4 3 6 . . . . 10 . . 3 1 4 2 . 3 5 . 5 3 6 Fire 3167 | 8 94 18 161 8 . 26 117 131 320 31 8 . 42 374 58 20 4 49 109 97 31 385 423 . 143 240 270 Melee . | . . . . . . . . . . . . . . . . . . . . . . . . . . . . Ram 1 | . . . . . . . . . 1 . . . . . . . . . . . . . . . . . . Kick . | . . . . . . . . . . . . . . . . . . . . . . . . . . . . Crush . | . . . . . . . . . . . . . . . . . . . . . . . . . . . . Escape Stasis 55 | . . . . . . . . . 13 . . . . . . . . . . 8 . . 8 . . 11 15 Rewire 154 | . . . . . . . . 2 . . . . . . . . . 24 . 83 . . 45 . . . . Trap . | . . . . . . . . . . . . . . . . . . . . . . . . . . . . Miscellaneous 1061 | . 28 7 54 6 2 12 33 35 130 18 4 . 9 123 27 11 . 17 26 34 6 110 138 . 72 41 118 Route ------- -11/Scrapyard -10/Materials (discovered 5 exits: *Mat x3 / [*Min] / [*Sub]) -10/Mines (discovered 2 exits: *Mat x2) -9/Materials (discovered 3 exits: *Mat x2 / *Min) -9/Mines (discovered 3 exits: *Mat x2 / *Exi) -9/Exiles -8/Mines (discovered 2 exits: *Mat x2) -8/Materials (discovered 5 exits: *Fac x3 / *Sto x2) -8/Storage -7/Factory (discovered 5 exits: *Fac x3 / *Low x2) -7/Lower Caves -7/Lower Caves (discovered 2 exits: *Fac / *Dat) -7/Data Miner -6/Proximity Caves -6/Factory (discovered 3 exits: *Fac / *Low x2) -6/Lower Caves -6/Lower Caves (discovered 2 exits: *Fac / *Zio) -6/Zion (discovered 2 exits: Dee / *Pro) -5/Proximity Caves -5/Factory (discovered 3 exits: *Fac x2 / *Ext) -5/Extension (discovered 3 exits: *Fac x2 / *Cet) -5/Cetus (discovered 2 exits: *Fac / [*Arc]) -4/Factory (discovered 2 exits: *Res / *Arm) -4/Armory (discovered 2 exits: Res / *Lab) -4/Lab -3/Research (discovered 5 exits: *Res x3 / *Tes x2) -3/Testing -2/Research (discovered 2 exits: *Acc / [*Qua]) History --------- Turn | Location | Event 1 | -11/Scrapyard | Upgraded with Propulsion slot (x1) 1 | -11/Scrapyard | Upgraded with Utility slot (x1) 1 | -11/Scrapyard | Upgraded with Weapon slot (x1) 2 | -11/Scrapyard | Met Revision 17 6 | -11/Scrapyard | Discovered new exit (range 15) 117 | -11/Scrapyard | Entered Materials 118 | -10/Materials | Met a group of wandering Federalists 222 | -10/Materials | Discovered new exit (range 16) 233 | -10/Materials | Discovered new exit (range 7) 261 | -10/Materials | Angered wandering Federalists 385 | -10/Materials | Discovered new exit (range 9) 466 | -10/Materials | Build established: Scavenger-Mutant 751 | -10/Materials | Discovered new exit (range 15) 896 | -10/Materials | Discovered new exit (range 6) 1035 | -10/Materials | Reached level 2 1047 | -10/Materials | Upgraded with Weapon slot (x1) 1353 | -10/Materials | Build established: Scavenger-Gunner 1709 | -10/Materials | Entered Mines 1709 | -10/Mines | Accompanied by 1 ally 1711 | -10/Mines | Reached level 3 1717 | -10/Mines | Discovered new exit (range 7) 1825 | -10/Mines | Upgraded with Propulsion slot (x1) 1825 | -10/Mines | Upgraded with Utility slot (x1) 1885 | -10/Mines | Learned location of Zion (-6) 1889 | -10/Mines | Learned location of Storage (-8) 1895 | -10/Mines | Discovered new exit (range 9) 1942 | -10/Mines | Found a damaged Exp. Sensor Array with a note attached 1951 | -10/Mines | Found Prototype Device 1951 | -10/Mines | Identified Exp. Sensor Array 1990 | -10/Mines | Entered Materials 1990 | -9/Materials | Accompanied by 1 ally 1992 | -9/Materials | Reached level 4 2001 | -9/Materials | Identified exit to Mines 2019 | -9/Materials | Reached level 5 2103 | -9/Materials | Upgraded with Power slot (x1) 2103 | -9/Materials | Upgraded with Utility slot (x1) 2219 | -9/Materials | Reached level 6 2257 | -9/Materials | Build established: Scavenger-Skirmisher 2272 | -9/Materials | Destroyed 7 combat bots 2304 | -9/Materials | Discovered new exit (range 15) 2628 | -9/Materials | Reached level 7 2761 | -9/Materials | Discovered new exit (range 16) 2790 | -9/Materials | First assault squad dispatched 2852 | -9/Materials | Reached level 8 3337 | -9/Materials | Reached level 9 3422 | -9/Materials | Sterilization system engaged 3422 | -9/Materials | Non-combat units ordered to evacuate 3472 | -9/Materials | Entered Mines 3472 | -9/Mines | Accompanied by 1 ally 3495 | -9/Mines | Learned 4 Materials zone layouts 3558 | -9/Mines | Received a Rocket Launcher from a helpful Derelict 3569 | -9/Mines | Discovered new exit (range 5) 3583 | -9/Mines | Discovered new exit (range 6) 3624 | -9/Mines | Deemed a non-threat by the Exiles lab entrance 3624 | -9/Mines | Discovered new exit (range 5) 3664 | -9/Mines | Upgraded with Utility slot (x1) 3683 | -9/Mines | Upgraded with Utility slot (x1) 3749 | -9/Mines | Entered Exiles 3749 | -9/Exiles | Accompanied by 1 ally 3759 | -9/Exiles | Met 8R-AWN 3764 | -9/Exiles | Met EX-HEX 3773 | -9/Exiles | Met EX-BIN 3778 | -9/Exiles | Aligned with FarCom system 3778 | -9/Exiles | Given EX-Vault access code 3787 | -9/Exiles | Opened EX-Vault 3798 | -9/Exiles | Found XL Autogun Array 3812 | -9/Exiles | Warned to stay clear of 0b10 Research branches 3822 | -9/Exiles | Met EX-DEC 3837 | -9/Exiles | Visited The Gauntlet 3876 | -9/Exiles | Discovered new exit (range 14) 3903 | -9/Exiles | Left Exiles lab with XL Autogun Array 3903 | -9/Exiles | Entered Mines 3903 | -8/Mines | Accompanied by 1 ally 3906 | -8/Mines | Reached level 10 3911 | -8/Mines | Upgraded with Weapon slot (x1) 3936 | -8/Mines | Discovered new exit (range 9) 4060 | -8/Mines | Discovered new exit (range 6) 4064 | -8/Mines | Reached level 11 4198 | -8/Mines | Build established: Scavenger-Scout 4273 | -8/Mines | Entered Materials 4273 | -8/Materials | Accompanied by 1 ally 4274 | -8/Materials | Identified exit to Storage 4311 | -8/Materials | Reached level 12 4324 | -8/Materials | Upgraded with Propulsion slot (x1) 4451 | -8/Materials | Destroyed 7 combat bots 4473 | -8/Materials | Discovered new exit (range 13) 4510 | -8/Materials | Garrison activated, responded to threat 4630 | -8/Materials | Discovered new exit (range 3) 4747 | -8/Materials | Reached level 13 4834 | -8/Materials | Discovered new exit (range 8) 5145 | -8/Materials | Build established: Scout 5402 | -8/Materials | Sterilization system engaged 5402 | -8/Materials | Non-combat units ordered to evacuate 5437 | -8/Materials | Reached level 14 5448 | -8/Materials | Entered Storage 5448 | -8/Storage | Accompanied by 2 allies 5706 | -8/Storage | Discovered new exit (range 16) 5724 | -8/Storage | Upgraded with Propulsion slot (x1) 5810 | -8/Storage | Reached level 15 6006 | -8/Storage | High security lockdown imminent 6086 | -8/Storage | High security lockdown engaged 6177 | -8/Storage | Destroyed 20 combat bots 6223 | -8/Storage | Sterilization system engaged 6223 | -8/Storage | Non-combat units ordered to evacuate 6249 | -8/Storage | Destroyed 19 combat bots 6323 | -8/Storage | Combat units ordered to evacuate 6523 | -8/Storage | Ambient heat levels rising (+10) 6613 | -8/Storage | Entered Factory 6613 | -7/Factory | Accompanied by 2 allies 6615 | -7/Factory | Reached level 16 6841 | -7/Factory | Garrison activated, responded to threat 6896 | -7/Factory | Discovered new exit (range 15) 7268 | -7/Factory | Discovered new exit (range 8) 7567 | -7/Factory | Destroyed 7 combat bots 7611 | -7/Factory | Discovered new exit (range 15) 7682 | -7/Factory | Reached level 17 7717 | -7/Factory | Upgraded with Utility slot (x1) 7733 | -7/Factory | Fabricated Triangulator (x2) 8001 | -7/Factory | Identified exit to Lower Caves 8027 | -7/Factory | Central database locked down 8169 | -7/Factory | Cargo convoy interrupted 8213 | -7/Factory | First assault squad dispatched 8219 | -7/Factory | Build established: Commander-Scout 8276 | -7/Factory | Destroyed 10 combat bots 8497 | -7/Factory | High security lockdown imminent 8499 | -7/Factory | Discovered new exit (range 15) 8577 | -7/Factory | High security lockdown engaged 8631 | -7/Factory | Reached level 18 8661 | -7/Factory | Destroyed 13 combat bots 8774 | -7/Factory | Destroyed 14 combat bots 8837 | -7/Factory | Destroyed 7 combat bots 8843 | -7/Factory | Crushed by falling debris 8909 | -7/Factory | Destroyed 7 combat bots 8979 | -7/Factory | Destroyed 7 combat bots 9078 | -7/Factory | Destroyed 7 combat bots 9148 | -7/Factory | Destroyed 15 combat bots 9179 | -7/Factory | Sterilization system engaged 9179 | -7/Factory | Non-combat units ordered to evacuate 9180 | -7/Factory | Reached level 19 9201 | -7/Factory | Destroyed 7 combat bots 9217 | -7/Factory | Upgraded with Utility slot (x1) 9276 | -7/Factory | Entered Lower Caves 9276 | -7/Lower Caves | Accompanied by 4 allies 9282 | -7/Lower Caves | Learned Factory terminal intel 9335 | -7/Lower Caves | Destroyed 7 combat bots 9398 | -7/Lower Caves | Spotted B-75 Beast 9404 | -7/Lower Caves | Destroyed B-75 Beast 9438 | -7/Lower Caves | Encountered a Warlord checkpoint 9462 | -7/Lower Caves | Found DCF Scrap (15 items) 9480 | -7/Lower Caves | Attracted the attention of an 0b10 outpost 9493 | -7/Lower Caves | Learned Factory stockpile data 9580 | -7/Lower Caves | Build established: Commander-Gunner 9583 | -7/Lower Caves | Discovered new exit (range 11) 9713 | -7/Lower Caves | Entered another Lower Caves area 9713 | -7/Lower Caves | Accompanied by 4 allies 9731 | -7/Lower Caves | Discovered new exit (range 7) 9816 | -7/Lower Caves | Discovered new exit (range 12) 9823 | -7/Lower Caves | Learned Factory interactive machine intel 10108 | -7/Lower Caves | Entered Data Miner 10108 | -7/Data Miner | Accompanied by 4 allies 10108 | -7/Data Miner | Discovered new exit (range 6) 10114 | -7/Data Miner | Met Data Miner 10124 | -7/Data Miner | Learned location of Section 7 (-2) 10124 | -7/Data Miner | Acquired the access code to Warlord's prototype stash 10127 | -7/Data Miner | Received God Mode back door access code from Data Miner 10143 | -7/Data Miner | Entered Proximity Caves 10143 | -6/Proximity Caves | Accompanied by 4 allies 10145 | -6/Proximity Caves | Spotter reported a threat 10184 | -6/Proximity Caves | Destroyed 9 combat bots 10421 | -6/Proximity Caves | Discovered new exit (range 11) 10428 | -6/Proximity Caves | Learned Factory security intel 10463 | -6/Proximity Caves | Spotted B-75 Beast 10469 | -6/Proximity Caves | Reached level 20 10469 | -6/Proximity Caves | Destroyed B-75 Beast 10491 | -6/Proximity Caves | Entered Factory 10491 | -6/Factory | Accompanied by 4 allies 10494 | -6/Factory | Loaded intel: 53 interactive machine locations 10495 | -6/Factory | Loaded intel: 25 terminal locations 10663 | -6/Factory | Garrison activated, responded to threat 10677 | -6/Factory | Unchained authorized (DW-4LL) 10717 | -6/Factory | Exiles provided nearest exit location to -5/Factory 10777 | -6/Factory | Build established: Commander-Scout 10841 | -6/Factory | First assault squad dispatched 10876 | -6/Factory | Destroyed 12 combat bots 10886 | -6/Factory | DW-4LL burst out of a wall 10895 | -6/Factory | Destroyed DW-4LL 10899 | -6/Factory | Found Prototype Device 10899 | -6/Factory | Identified Exp. Weapon Cycler 10901 | -6/Factory | Found Prototype Device 10901 | -6/Factory | Identified Zeronet Interface 10933 | -6/Factory | Reached level 21 10943 | -6/Factory | Upgraded with Utility slot (x1) 10989 | -6/Factory | Discovered new exit (range 11) 11123 | -6/Factory | Spotted B-75 Beast 11130 | -6/Factory | Destroyed B-75 Beast 11184 | -6/Factory | Destroyed 7 combat bots 11595 | -6/Factory | Cargo convoy interrupted 11640 | -6/Factory | Found Prototype Processor 11640 | -6/Factory | Identified Spectral Analyzer 11652 | -6/Factory | Destroyed 10 combat bots 11695 | -6/Factory | Destroyed 10 combat bots 11733 | -6/Factory | Discovered new exit (range 5) 11908 | -6/Factory | Fabricated A-15 Conveyor? 11913 | -6/Factory | High security lockdown imminent 11993 | -6/Factory | High security lockdown engaged 12152 | -6/Factory | Reached level 22 12173 | -6/Factory | Destroyed 11 combat bots 12266 | -6/Factory | Destroyed 12 combat bots 12329 | -6/Factory | Destroyed 16 combat bots 12390 | -6/Factory | Sterilization system engaged 12390 | -6/Factory | Non-combat units ordered to evacuate 12406 | -6/Factory | Destroyed 8 combat bots 12457 | -6/Factory | Destroyed 15 combat bots 12490 | -6/Factory | Combat units ordered to evacuate 12597 | -6/Factory | Identified exit to Lower Caves 12674 | -6/Factory | Entered Lower Caves 12674 | -6/Lower Caves | Accompanied by 8 allies 12695 | -6/Lower Caves | Spotted B-75 Beast 12699 | -6/Lower Caves | Destroyed B-75 Beast 12772 | -6/Lower Caves | Learned 4 Factory zone layouts 12820 | -6/Lower Caves | Attracted the attention of an 0b10 base 12838 | -6/Lower Caves | Learned Research emergency access door positions 12838 | -6/Lower Caves | Learned Extension garrison access intel 12838 | -6/Lower Caves | Learned Armory garrison access intel 12842 | -6/Lower Caves | Destroyed 14 combat bots 12904 | -6/Lower Caves | Discovered new exit (range 16) 12911 | -6/Lower Caves | Attracted the attention of an 0b10 checkpoint 12953 | -6/Lower Caves | Learned location of 1 exit from Factory 12963 | -6/Lower Caves | Destroyed 15 combat bots 13145 | -6/Lower Caves | Identified exit to Lower Caves 13300 | -6/Lower Caves | Entered another Lower Caves area 13300 | -6/Lower Caves | Accompanied by 8 allies 13301 | -6/Lower Caves | Encountered a Warlord checkpoint 13305 | -6/Lower Caves | Discovered exit to Factory (range 8) 13306 | -6/Lower Caves | Learned Factory security intel 13361 | -6/Lower Caves | Ambushed by wild Derelicts 13451 | -6/Lower Caves | Spotted B-75 Beast 13460 | -6/Lower Caves | Destroyed B-75 Beast 13618 | -6/Lower Caves | Discovered new exit (range 9) 13625 | -6/Lower Caves | Identified exit to Zion 13681 | -6/Lower Caves | Entered Zion 13681 | -6/Zion | Accompanied by 8 allies 13703 | -6/Zion | Discovered new exit (range 11) 13740 | -6/Zion | Gained Derelict followers 13774 | -6/Zion | Gained Derelict followers 13797 | -6/Zion | Identified exit to Deep Caves 13849 | -6/Zion | Found Prototype Energy Gun 13849 | -6/Zion | Identified Storm Laser 13915 | -6/Zion | Rebuked by Imprinter 14290 | -6/Zion | Identified exit to Proximity Caves 14418 | -6/Zion | Entered Proximity Caves 14418 | -5/Proximity Caves | Accompanied by 14 allies 14420 | -5/Proximity Caves | Reached level 23 14421 | -5/Proximity Caves | Spotted B-75 Beast 14426 | -5/Proximity Caves | Destroyed B-75 Beast 14435 | -5/Proximity Caves | Attracted the attention of an 0b10 checkpoint 14438 | -5/Proximity Caves | Attracted the attention of an 0b10 outpost 14468 | -5/Proximity Caves | Destroyed 10 combat bots 14544 | -5/Proximity Caves | Learned location of Armory (-4) 14656 | -5/Proximity Caves | Destroyed 8 combat bots 14661 | -5/Proximity Caves | Learned Factory trap positions 14697 | -5/Proximity Caves | Discovered exit to Factory (range 6) 15045 | -5/Proximity Caves | Entered Factory 15045 | -5/Factory | Accompanied by 15 allies 15046 | -5/Factory | Identified exit to Extension 15047 | -5/Factory | Identified exit to Factory 15049 | -5/Factory | Loaded intel: 87 trap records 15208 | -5/Factory | Unchained authorized (GL-D0S) 15254 | -5/Factory | Reached level 24 15294 | -5/Factory | Lost 5 allies 15354 | -5/Factory | Spotted B-75 Beast 15379 | -5/Factory | Destroyed B-75 Beast 15432 | -5/Factory | Discovered exit to Factory (range 16) 15582 | -5/Factory | Upgraded with Weapon slot (x1) 15635 | -5/Factory | Found Exp. Targeting Computer 15678 | -5/Factory | Entered Extension 15680 | -5/Extension | Disrupted transfer network 15736 | -5/Extension | Spotted B-75 Beast 15737 | -5/Extension | Destroyed B-75 Beast 15745 | -5/Extension | Destroyed B-75 Beast 15761 | -5/Extension | Rescued a captive Derelict 15763 | -5/Extension | Rescued a captive Derelict 15816 | -5/Extension | Destroyed 14 combat bots 15816 | -5/Extension | Discovered exit to Factory (range 3) 15821 | -5/Extension | Build established: Scavenger-Scout 15896 | -5/Extension | Destroyed 10 combat bots 15903 | -5/Extension | Rescued a captive Derelict 15919 | -5/Extension | Rescued A7 15938 | -5/Extension | Discovered exit to Factory (range 10) 15938 | -5/Extension | Discovered new exit (range 6) 15978 | -5/Extension | First assault squad dispatched 16141 | -5/Extension | Reached level 25 16234 | -5/Extension | Identified exit to Cetus 16334 | -5/Extension | Build established: Commander-Scout 16511 | -5/Extension | Entered Cetus 16511 | -5/Cetus | Accompanied by 18 allies (A7) 16516 | -5/Cetus | Acquired a Cetus Manufacturing Module code from A7 16517 | -5/Cetus | Spotted Cetus Guard 16517 | -5/Cetus | Spotted Cetus Guard 16518 | -5/Cetus | Destroyed Cetus Guard 16519 | -5/Cetus | Spotted Cetus Guard 16519 | -5/Cetus | Destroyed Cetus Guard 16521 | -5/Cetus | Spotted Cetus Guard 16521 | -5/Cetus | Destroyed Cetus Guard 16526 | -5/Cetus | Destroyed Cetus Guard 16563 | -5/Cetus | Started Cetus Manufacturing Module 16588 | -5/Cetus | Manufactured an Enhanced Grunt 16613 | -5/Cetus | Manufactured an Enhanced Grunt 16638 | -5/Cetus | Manufactured an Enhanced Grunt 16663 | -5/Cetus | Manufactured an Enhanced Grunt 16688 | -5/Cetus | Manufactured an Enhanced Grunt 16740 | -5/Cetus | Discovered new exit (range 18) 16748 | -5/Cetus | Spotted Cetus Guard 16748 | -5/Cetus | Spotted Cetus Guard 16751 | -5/Cetus | Destroyed Cetus Guard 16751 | -5/Cetus | Spotted Cetus Guard 16752 | -5/Cetus | Spotted Cetus Guard 16753 | -5/Cetus | Destroyed Cetus Guard 16756 | -5/Cetus | Destroyed Cetus Guard 16758 | -5/Cetus | Destroyed Cetus Guard 16761 | -5/Cetus | Discovered exit to Factory (range 18) 16764 | -5/Cetus | Met Revision 17 16930 | -5/Cetus | Entered Factory 16930 | -4/Factory | Accompanied by 23 allies (A7) 17009 | -4/Factory | Discovered new exit (range 7) 17010 | -4/Factory | Identified exit to Research 17060 | -4/Factory | Spotted B-86 Titan 17064 | -4/Factory | Destroyed B-86 Titan 17072 | -4/Factory | Upgraded with Utility slot (x1) 17085 | -4/Factory | Reached level 26 17131 | -4/Factory | Garrison activated, responded to threat 17180 | -4/Factory | First assault squad dispatched 17217 | -4/Factory | Garrison activated, responded to threat 17225 | -4/Factory | Allied Derelicts emerged from ambush trap array 17513 | -4/Factory | Reached level 27 17539 | -4/Factory | Lost 3 allies 17545 | -4/Factory | Destroyed 8 combat bots 17564 | -4/Factory | Upgraded with Utility slot (x1) 17594 | -4/Factory | High security lockdown imminent 17674 | -4/Factory | High security lockdown engaged 17685 | -4/Factory | Destroyed 13 combat bots 17691 | -4/Factory | Found Prototype Device 17691 | -4/Factory | Identified Exp. Thermal Shield 17807 | -4/Factory | Build established: Scavenger-Scout 17866 | -4/Factory | Destroyed 14 combat bots 17911 | -4/Factory | Discovered new exit (range 18) 17978 | -4/Factory | Identified exit to Armory 17997 | -4/Factory | Destroyed 15 combat bots 18014 | -4/Factory | Reached level 28 18113 | -4/Factory | Sterilization system engaged 18113 | -4/Factory | Non-combat units ordered to evacuate 18138 | -4/Factory | Destroyed 43 combat bots 18213 | -4/Factory | Combat units ordered to evacuate 18413 | -4/Factory | Ambient heat levels rising (+10) 18563 | -4/Factory | Ambient heat levels rising (+10) 18713 | -4/Factory | Ambient heat levels rising (+10) 18847 | -4/Factory | Entered Armory 19028 | -4/Armory | Unchained authorized (6S-H0T) 19044 | -4/Armory | High security lockdown imminent 19068 | -4/Armory | Exiles provided nearest exit location to -3/Research 19124 | -4/Armory | High security lockdown engaged 19204 | -4/Armory | Destroyed 36 combat bots 19258 | -4/Armory | Reached level 29 19259 | -4/Armory | P-70 Sage assimilated allied Warrior 7a 19278 | -4/Armory | Core integrity fell below 50% 19304 | -4/Armory | Destroyed 29 combat bots 19305 | -4/Armory | Build established: Hacker-Scout 19325 | -4/Armory | Energy Cycler disabled 19363 | -4/Armory | Destroyed 9 combat bots 19491 | -4/Armory | Spotted Armor Guard 19491 | -4/Armory | Spotted Armor Guard 19510 | -4/Armory | Destroyed 33 combat bots 19518 | -4/Armory | Destroyed Armor Guard 19519 | -4/Armory | Core integrity fell below 20% 19534 | -4/Armory | Destroyed Armor Guard 19645 | -4/Armory | Sterilization system engaged 19645 | -4/Armory | Non-combat units ordered to evacuate 19688 | -4/Armory | Destroyed 25 combat bots 19731 | -4/Armory | Destroyed 9 combat bots 19745 | -4/Armory | Combat units ordered to evacuate 19806 | -4/Armory | Discovered new exit (range 4) 19851 | -4/Armory | Identified exit to Lab 19874 | -4/Armory | Entered Lab 19874 | -4/Lab | Accompanied by 4 allies 19874 | -4/Lab | Discovered exit to Research (range 9) 19884 | -4/Lab | Entered Research 19884 | -3/Research | Accompanied by 4 allies 19886 | -3/Research | Reached level 30 19947 | -3/Research | Discovered new exit (range 18) 19974 | -3/Research | Identified exit to Research 19987 | -3/Research | Spotted B-86 Titan 19990 | -3/Research | Destroyed B-86 Titan 20084 | -3/Research | Revision forces began assault on 0b10 20084 | -3/Research | Lost 4 allies 20134 | -3/Research | Destroyed 8 combat bots 20136 | -3/Research | Identified exit to Testing 20154 | -3/Research | Fabricated Combat Drone Bay? 20217 | -3/Research | Discovered exit to Research (range 19) 20241 | -3/Research | Build established: Scavenger-Scout 20305 | -3/Research | Met up with Revision 17++ 20584 | -3/Research | Research terminal network offline 20717 | -3/Research | Found Prototype Device 20717 | -3/Research | Identified Exp. EM Disruption Field 20835 | -3/Research | Build established: Hacker-Scout 20930 | -3/Research | Spotted B-86 Titan 20934 | -3/Research | Destroyed B-86 Titan 21024 | -3/Research | Discovered exit to Research (range 10) 21081 | -3/Research | Destroyed 10 combat bots 21249 | -3/Research | Entered Testing 21250 | -3/Testing | Reached level 31 21250 | -3/Testing | Maximum security lockdown engaged 21264 | -3/Testing | Scanned by Researcher 21317 | -3/Testing | Unstable Terrabomb Derivative detonated 21329 | -3/Testing | Found Prototype Hackware 21367 | -3/Testing | Spotted Striker 21367 | -3/Testing | Spotted Striker 21374 | -3/Testing | Destroyed Striker 21375 | -3/Testing | Destroyed Striker 21382 | -3/Testing | Spotted Alpha 7 21393 | -3/Testing | Destroyed Alpha 7 21467 | -3/Testing | Destroyed 28 combat bots 21487 | -3/Testing | Destroyed Investigator 21541 | -3/Testing | Found Prototype Launcher 21551 | -3/Testing | Destroyed 18 combat bots 21593 | -3/Testing | Discovered exit to Research (range 20) 21619 | -3/Testing | Spotted Executioner 21625 | -3/Testing | System corruption reached 10% 21649 | -3/Testing | Destroyed Executioner 21680 | -3/Testing | Spotted Striker 21686 | -3/Testing | Destroyed Striker 21703 | -3/Testing | Spotted Investigator 21703 | -3/Testing | Identified Containment Facilitator 21708 | -3/Testing | Destroyed Investigator 21717 | -3/Testing | Spotted Striker 21717 | -3/Testing | Spotted Striker 21723 | -3/Testing | Core integrity fell below 50% 21733 | -3/Testing | Entered Research 21734 | -2/Research | Core integrity fell below 50% 21735 | -2/Research | Reached level 32 21745 | -2/Research | Destroyed 21 combat bots 21773 | -2/Research | Discovered new exit (range 19) 21783 | -2/Research | Identified exit to Access 21789 | -2/Research | Upgraded with Utility slot (x1) 21789 | -2/Research | Identified System Mapper 21798 | -2/Research | Core integrity fell below 20% 21886 | -2/Research | Spotted B-90 Cyclops 21916 | -2/Research | Destroyed B-90 Cyclops 21944 | -2/Research | Unchained authorized (6S-H0T) 21983 | -2/Research | First assault squad dispatched 22103 | -2/Research | Destroyed 6S-H0T 22115 | -2/Research | Found Zeronet Interface 22171 | -2/Research | Spotted B-90 Cyclops 22199 | -2/Research | Destroyed B-90 Cyclops 22212 | -2/Research | Discovered new exit (range 19) 22267 | -2/Research | System corruption reached 10% 22297 | -2/Research | Found Prototype Device 22297 | -2/Research | Identified Thermal Barrier 22307 | -2/Research | Spotted B-90 Cyclops 22323 | -2/Research | High security lockdown imminent 22376 | -2/Research | Reached level 33 22403 | -2/Research | High security lockdown engaged 22412 | -2/Research | Destroyed 14 combat bots 22430 | -2/Research | Destroyed B-90 Cyclops 22549 | -2/Research | Destroyed 8 combat bots 22597 | -2/Research | Spotted Investigator 22597 | -2/Research | Destroyed Investigator 22637 | -2/Research | Found Containment Facilitator 22641 | -2/Research | Destroyed 19 combat bots 22678 | -2/Research | Garrison activated, responded to threat 22719 | -2/Research | Destroyed 14 combat bots 22723 | -2/Research | Spotted Investigator 22724 | -2/Research | Self-destructed Last Messages --------------- 22720_ M-36 Artificer stasis bubble strength at 140. 22720_ Stasis bubble strength at 74. 22721_ G-73 Enforcer stasis bubble strength at 62. 22721_ M-36 Artificer stasis bubble strength at 130. 22721_ Stasis bubble strength at 11. 22721_ Held in stasis. 22721_ Investigator is analyzing... 22722_ G-73 Enforcer stasis bubble strength at 39. 22722_ M-36 Artificer stasis bubble strength at 120. 22722_ Stasis bubble bursts. 22723_ G-73 Enforcer stasis bubble strength at 16. 22723_ M-36 Artificer stasis bubble strength at 110. 22723_ Acquired 35 matter. Map ----- +----------------------------------------------------+ | ###?#+#################### # ## ]! # #? | | ""## ?????????????????# #%*## # #? | | #### #????######??????# [ #%=## # ## | | ""?# #????# ?????# #%*##! # ## | | #### #????# ?????# *#%!##= # ## | | #??# #????# ?##########= !!%###"###+## #? | | #??# #????# ?# [%*[=*==%[=!/ #? | | #??# #????# / !# *=%= %%%%*%!!/ #? | | #??# #????# # [ =![*%!==!=*!%= #? | | #??# #????# ! + !%%*=!!%=!=[! #? | | #?##########?# # ![%######!##[!"####""##### | | ??# ! ###= # ![=#????#!######?# | | ??# "########### [%!#????"="??????# ! | | ??# #" = # [! #???""[" ?????# | | ### !## # #?? "" " ?????# """"" | | #####+###### =%= # #? "" " ????# """"" | | + """ +! + #???# """"" | | ###### "" #%! # ?] #???# | | #????# """ / #* #?? #???# * | | """ #????# # #?? #???######### | | """ | #????# # =/|#??#/#####????????????? | | """ #????##########;=*!%#??# ?????????Y???????? | | #??????????????#|%g*### #???????????????? | | #??????????????#%%!lgg +???????????????? | | #??????????????#=!=!### #???????????????? | | #??????????????#%!@c#????##???????????????? | | #??????????????#!!!%#?????????????????????? | | " F" #??????????????#=[[p#?????????????????????? | | """" #??????????C???#*!![#?????????????????????? | | #??????????????#=[!m#?????????????????????? | | #??????????????# ![ #?????????????????????? | | #??????????????# #?????????????????????? | | ###### #??????????????# p#?????????????????????? | | ?????? #???????###+#### #?????????????????????? | | ??????+#???????# #?????????????????????? | | ???????????????# #?????????????????????? | | ??????????????## #?????????????????????? | | ?????????+ i #?????????????????????? | | ?????????# ###### ##### h #?????????????????????? | | ????????????????#?????# #?????????????????????? | | ??????????????????????# w#?????????????????????? | | ??????????w???????????# #?????????????????????? | | ??????????????????????# "?????????????????????? | | ??????????????????????# " ????????????????????? | | ??????????????????????+ Y" ???????????????????? | | ??????????????????????# [!""#???????????????????? | | ??????????????????????# %" ???????????????????? | | ??????????????????????# =*% ??????????????????? | | ??????????????????????# " ??????????????????? | | ??????????????????????# #% "Y????????????????? | +----------------------------------------------------+ Best States ------------- Heat Dissipation 122 Energy Generation 49 Energy Capacity 550 Matter Stores 500 Matter Capacity 500 Sight Range 26 Robot Scan Range 40 Terrain Scan Range 16 Terrain Scan Density 10 Jamming Range 16 Additional Mass Support 9 EM Shielding 3 Armor Coverage 300 Resistance: KI 30 Resistance: TH 50 Weapon Cycling 30 Evasion (%) 63 Targeting Accuracy 12 Armor Integrity Analysis 40 Matter Filtering 50 Offensive Hacking 44 Defensive Hacking 5 Authchip Count 2 Item Schematics ----------------- Hvy. Hammer | -9/Materials | Extracted Imp. Aluminum Leg | -9/Materials | Extracted Adv. Beam Cannon | -9/Materials | Extracted Mni. Grenade Launcher | -9/Materials | Extracted Imp. Ion Engine | -9/Materials | Extracted Beam Rifle | -9/Materials | Extracted Sensor Array | -9/Materials | Extracted Shield Generator | -9/Materials | Extracted Triangulator | -7/Factory | Hacked Arc Projector | -7/Factory | Hacked Imp. Cooling System | -7/Factory | Hacked Combat Drone Bay | -7/Data Miner | Free Lgt. Regenerative Plating | -7/Data Miner | Free Exp. Targeting Computer | -7/Data Miner | Free Multireflex Exoskeleton | -7/Data Miner | Free Com. Ion Cannon | -7/Data Miner | Free Arm. Medium Treads | -7/Data Miner | Free Lyr. Heavy Armor Plating | -7/Data Miner | Free Tesla Rifle | -7/Data Miner | Free Power Amplifier | -6/Zion | Archive Hyp. Gauss Cannon | -6/Zion | Archive Adv. Heat Sink | -6/Zion | Archive Arm. Leg | -6/Zion | Archive Adv. Sensor Array | -6/Zion | Archive Lrn. Proton Cannon | -6/Zion | Archive Disruptor Cannon | -6/Zion | Archive Phase Gun | -6/Zion | Archive Hvy. Pick | -6/Zion | Archive Imp. Transmission Jammer | -6/Zion | Archive Thermic Laser | -6/Zion | Archive Enh. Gauss Cannon | -6/Zion | Archive Magnetic Acceleration Cannon | -6/Zion | Archive Adv. Focal Shield | -6/Zion | Archive Adv. Signal Interpreter | -3/Research | Extracted Adv. Hacking Suite | -3/Research | Extracted Cloaking Device | -3/Research | Extracted Dynamic Insulation System | -3/Research | Extracted Proton Burst Cannon | -3/Testing | Archive Imp. Lightning Gun | -3/Testing | Archive Adv. Variable Charge Gun | -3/Testing | Archive Imp. Diametric Drive | -3/Testing | Archive Adv. Plasma Rifle | -3/Testing | Archive Hvy. Dispersion Rifle | -3/Testing | Archive Com. Tesla Bomb Launcher | -3/Testing | Archive Cld. Antimatter Reactor | -3/Testing | Archive Centrium Light Armor Plating | -3/Testing | Archive Robot Schematics ------------------ H-55 Commando | -7/Data Miner | Free P-60 Hacker | -7/Data Miner | Free A-15 Conveyor | -7/Data Miner | Free X-67 Chaingunner | -7/Data Miner | Free B-48 Gladiator | -6/Zion | Archive S-27 Virus | -6/Zion | Archive H-66 Slayer | -6/Zion | Archive R-10 Processor | -3/Testing | Archive S-43 Plague | -3/Testing | Archive L-61 Swordsman | -3/Testing | Archive Fabricated ------------ Triangulator | x2 | -7/Factory A-15 Conveyor | x1 | -6/Factory Combat Drone Bay | x1 | -3/Research | Authchip Repaired ---------- Nothing Studied --------- Mic. Nuclear Core | -6/Factory | Hacked Alien Tech Used ----------------- None Achievements -------------- None Challenges ------------ None RPGLIKE | -11 -10 -10 -9 -9 -9 -8 -8 -8 -7 -7 -7 -7 -6 -6 -6 -6 -6 -5 -5 -5 -5 -4 -4 -4 -3 -3 -2 --------- Run | Yrd Mat Min Mat Min Exi Min Mat Sto Fac Low Low Dat Pro Fac Low Low Zio Pro Fac Ext Cet Fac Arm Lab Res Tes Res Levels Raised 32 | . 1 1 6 . . 2 3 1 4 . . . 1 2 . . . 1 1 1 . 3 1 . 1 1 2 XP Earned 52200 | 3000 2650 1450 8078 536 169 2219 4590 2537 4818 245 142 73 1027 3694 399 124 73 1140 1036 1140 294 4628 1804 246 1831 1437 2820 XP Spent 49235 | 2960 800 1900 4910 4325 . 1600 4300 2850 5390 . 400 . . 4850 . . . . 1400 . . 6100 1325 . 2325 . 3800 Upgrades 82 | 10 1 3 11 6 . 2 6 5 6 . 2 . . 7 . . . . 1 . . 2 6 . 11 . 3 Power Slot 1 | . . . 1 . . . . . . . . . . . . . . . . . . . . . . . . Propulsion Slot 4 | 1 . 1 . . . . 1 1 . . . . . . . . . . . . . . . . . . . Utility Slot 11 | 1 . 1 1 2 . . . . 2 . . . . 1 . . . . . . . 2 . . . . 1 Weapon Slot 4 | 1 1 . . . . 1 . . . . . . . . . . . . 1 . . . . . . . . Core Integrity 5 | . . . . . . . . . . . . . . . . . . . . . . . 5 . . . . Heat Dissipation 13 | 3 . . 6 . . . . 3 1 . . . . . . . . . . . . . . . . . . Energy Generation 2 | . . 1 . 1 . . . . . . . . . . . . . . . . . . . . . . . Energy Storage 3 | . . . . 3 . . . . . . . . . . . . . . . . . . . . . . . Matter Storage 4 | . . . . . . . . . . . . . . 4 . . . . . . . . . . . . . Mass Support 3 | 1 . . 1 . . . 1 . . . . . . . . . . . . . . . . . . . . Inventory Capacity 4 | 2 . . 2 . . . . . . . . . . . . . . . . . . . . . . . . Sight Range 4 | . . . . . . . . . . . 2 . . 1 . . . . . . . . . . 1 . . Sensor Range 10 | . . . . . . . . . . . . . . . . . . . . . . . . . 10 . . Ranged Accuracy 5 | 1 . . . . . 1 1 1 . . . . . 1 . . . . . . . . . . . . . Hack Attack % 2 | . . . . . . . . . 2 . . . . . . . . . . . . . . . . . . Hack Defense % 1 | . . . . . . . . . 1 . . . . . . . . . . . . . . . . . . KI Resistance % 1 | . . . . . . . . . . . . . . . . . . . . . . . . . . . 1 TH Resistance % 1 | . . . . . . . . . . . . . . . . . . . . . . . . . . . 1 KI Damage % 4 | . . . . . . . 3 . . . . . . . . . . . . . . . 1 . . . . Protomatter Created 21808 | . 374 68 716 48 . 162 894 1640 2100 188 50 . 158 3020 407 258 . 424 485 994 362 2476 2698 . 889 1525 1872 Integrity Restored 20830 | . 492 103 1050 82 42 165 528 497 2559 334 77 . 120 2541 505 155 . 281 552 636 122 2146 3046 . 1400 828 2569 Core 15497 | . 393 85 709 72 . 116 373 287 1958 171 57 . 80 1891 402 131 . 213 438 505 93 1704 2817 . 596 541 1865 Parts 5333 | . 99 18 341 10 42 49 155 210 601 163 20 . 40 650 103 24 . 68 114 131 29 442 229 . 804 287 704 Protomatter Decayed 11687 | . 133 31 327 . 24 102 508 528 881 64 23 . 70 1101 68 156 . 225 327 698 320 1967 820 . 2612 510 192 Game ------ Seed CommFlightClaw Manual? 0 Play Time 04:59:03 Cumulative 504.0 hours Start 2025.12.20 @ 08:29:11 End 2025.12.21 @ 19:32:16 Sessions 13 Manual Loads 0 Difficulty Rogue Special Mode Winter2019/RPGLIKE Game No. 188 Rogue 34 Adventurer 154 Explorer 0 Win Type - Total 20 Types 4/4/3/3/2/1/0/1/1/1 Lore% 94 Gallery% 86 Achievement% 61 Wizard Run 0 Options --------- Layout 2 ASCII 0 Keyboard 0 Movement Numpad Keybinds 0 Fullscreen 2 Font 24/Smallcaps Map View 50x44 Zoom Use 0% Tactical HUD 1 Map Filters NONE Filters NONE Steam 1 RUN: 81bbe4b2-f6ba-44d2-bab0-8e2616b7424c